2CCN - Level 2 Cost Centre Name,,9CCN - Level 9 Cost Centre Name,9CCC - Level 9 Cost Centre Code,9AN - Level 9 Account Name,9AC - Level 9 Account Code,Transaction Description,Date Paid,Transaction Reference,Analysed Amount,2AC - Level 2 Account Codes,Supplier Name,Supplier Code
Gloucester City Council,23UE,Business Transformation & Tech,RT700,Internet Service Provider Fees,5429,Charges,01/12/2016,426576,143.49,NET,Virgin Media Business,01869B
Gloucester City Council,23UE,Business Transformation & Tech,RT700,Internet Service Provider Fees,5429,Charges NOV-DEC16,01/12/2016,426137,39,NET,Virgin Media Payments Ltd,09376J
Gloucester City Council,23UE,Bus Station,RB400,Water Supply,3400,Charges 07/10 - 07/11 2016,01/12/2016,426134,168.77,NET,Severn Trent Water Ltd,02417P
Gloucester City Council,23UE,City Museum And Art Gallery,LM200,Materials For Sale,5080,goods for resale,01/12/2016,424665,65.1,NET,The Puppet Company,14242N
Gloucester City Council,23UE,City Museum And Art Gallery,LM200,Publications For Sale,5064,goods for resale,01/12/2016,424665,130,NET,The Puppet Company,14242N
Gloucester City Council,23UE,Contact Centre,RB300,Basic Pay - Temporary Staff,2751,temporary staff w/e 06/11/2016,01/12/2016,426824,792,NET,Eden Brown Ltd,03613C
Gloucester City Council,23UE,Contact Centre,RB300,Basic Pay - Temporary Staff,2751,temporary staff w/e 13/11/2016,01/12/2016,426822,612,NET,Eden Brown Ltd,03613C
Gloucester City Council,23UE,Contact Centre,RB300,Basic Pay - Temporary Staff,2751,temporary staff w/e 20/11/2016,01/12/2016,426823,792,NET,Eden Brown Ltd,03613C
Gloucester City Council,23UE,Council Streetcare Team,HI101,Water Supply,3400,Charges 07/10 - 07/11 2016,01/12/2016,426134,6.55,NET,Severn Trent Water Ltd,02417P
Gloucester City Council,23UE,Countryside Unit,LP201,Contract Cleaning,3620,ranger centre cleaning,01/12/2016,425459,130,NET,Cv Fisher Cleaning Services,14907C
Gloucester City Council,23UE,Countryside Unit,LP201,Water Supply,3400,Charges 07/10 - 07/11 2016,01/12/2016,426134,549.66,NET,Severn Trent Water Ltd,02417P
Gloucester City Council,23UE,Crematorium,HC200,Water Supply,3400,Charges 07/10 - 07/11 2016,01/12/2016,426134,37.61,NET,Severn Trent Water Ltd,02417P
Gloucester City Council,23UE,Financial Services,RT200,Basic Pay - Temporary Staff,2751,temporary staff 13/11/16,01/12/2016,426789,551.75,NET,Venn Group Ltd,04339P
Gloucester City Council,23UE,REDACTED,REDACTED,REDACTED,REDACTED,REDACTED,01/12/2016,REDACTED,0,NET,REDACTED,REDACTED
Gloucester City Council,23UE,Green Waste Vehicle,RY221,Contract Payments,0020,Kerbsort recycling wagon,01/12/2016,426790,137032.18,CAP,Romaquip Ltd,17203V
Gloucester City Council,23UE,Green Waste Vehicle,RY221,Contract Payments,0020,Kerbsort recycling wagon,01/12/2016,426791,137032.18,CAP,Romaquip Ltd,17203V
Gloucester City Council,23UE,Green Waste Vehicle,RY221,Contract Payments,0020,Kerbsort recycling wagon,01/12/2016,426792,137032.18,CAP,Romaquip Ltd,17203V
Gloucester City Council,23UE,Green Waste Vehicle,RY221,Contract Payments,0020,Kerbsort recycling wagon,01/12/2016,426793,137032.18,CAP,Romaquip Ltd,17203V
Gloucester City Council,23UE,Green Waste Vehicle,RY221,Contract Payments,0020,Kerbsort recycling wagon,01/12/2016,426794,137032.18,CAP,Romaquip Ltd,17203V
Gloucester City Council,23UE,Investment Property,RB500,Rents,3200,Rent for YMCA,01/12/2016,426148,20,NET,Gloucestershire County Council,18650D
Gloucester City Council,23UE,Investment Property,RB500,Water Supply,3400,Charges 07/10 - 07/11 2016,01/12/2016,426134,198.83,NET,Severn Trent Water Ltd,02417P
Gloucester City Council,23UE,Investment Property,RB500,Water Supply,3400,Tariff Savings for June 2016,01/12/2016,426371,61.68,NET,Advanced Demand Side Management Ltd,16229K
Gloucester City Council,23UE,Investment Property,RB500,Water Supply,3400,Tariff Savings for September 2016,01/12/2016,426372,61.68,NET,Advanced Demand Side Management Ltd,16229K
Gloucester City Council,23UE,Kings Quarter,RY146,Contract Payments,0020,Grosvenor House call out 18/4/16,01/12/2016,418203,246,CAP,Adt Fire & Security Plc,54086D
Gloucester City Council,23UE,Off Street Car Parks,PP110,Water Supply,3400,Charges 07/10 - 07/11 2016,01/12/2016,426134,1656.18,NET,Severn Trent Water Ltd,02417P
Gloucester City Council,23UE,Off Street Car Parks,PP110,Water Supply,3400,Tariff Savings for June 2016,01/12/2016,426371,13.57,NET,Advanced Demand Side Management Ltd,16229K
Gloucester City Council,23UE,Off Street Car Parks,PP110,Water Supply,3400,Tariff Savings for September 2016,01/12/2016,426372,13.57,NET,Advanced Demand Side Management Ltd,16229K
Gloucester City Council,23UE,Play Area Refurbishment,LY071,Contract Payments,0020,LED LIGHT HIRE,01/12/2016,426799,59,CAP,Hss Hire,10212M
Gloucester City Council,23UE,Public Conveniences (Client),HI400,Water Supply,3400,Charges Jun - Jul 16,01/12/2016,426825,20.78,NET,Severn Trent Water,01823H
Gloucester City Council,23UE,Public Conveniences (Client),HI400,Water Supply,3400,Tariff Savings for June 2016,01/12/2016,426371,81.91,NET,Advanced Demand Side Management Ltd,16229K
Gloucester City Council,23UE,Public Conveniences (Client),HI400,Water Supply,3400,Tariff Savings for September 2016,01/12/2016,426372,81.91,NET,Advanced Demand Side Management Ltd,16229K
Gloucester City Council,23UE,Statutory Testing,RS310,Fees For Services Received,5350,Routine Maintenance,01/12/2016,426443,212,NET,Cooltherm,06087Z
Gloucester City Council,23UE,Utilities,PT502,Electricity Supply,3110,acct 877073 16 The Forum JUN-AUG16,01/12/2016,422179,96.36,NET,Opus Energy (Corporate),12788B
Gloucester City Council,23UE,Utilities,PT502,Electricity Supply,3110,Annual Charges,01/12/2016,426569,720,NET,Npower,03929V
Gloucester City Council,23UE,Utilities,PT502,Electricity Supply,3110,charges 22/8 - 22/9 unit 9,01/12/2016,424371,30.69,NET,Npower Ltd,02663W
Gloucester City Council,23UE,Utilities,PT502,Electricity Supply,3110,Charges Sep - Oct 2016,01/12/2016,425589,32.87,NET,Npower,55506T
Gloucester City Council,23UE,Utilities,PT502,Electricity Supply,3110,Eastgate Shop,01/12/2016,423126,29.56,NET,Npower,55506T
Gloucester City Council,23UE,Utilities,PT502,Electricity Supply,3110,Electricity & Gas Nov 16,01/12/2016,425809,2288.44,NET,West Mercia Energy,11669Z
Gloucester City Council,23UE,Utilities,PT502,Electricity Supply,3110,OCT16 gas & electric,01/12/2016,426614,27269.88,NET,West Mercia Energy,11669Z
Gloucester City Council,23UE,Utilities,PT502,Gas Supply,3100,Electricity & Gas Nov 16,01/12/2016,425809,10375.98,NET,West Mercia Energy,11669Z
Gloucester City Council,23UE,Utilities,PT502,Gas Supply,3100,OCT16 gas & electric,01/12/2016,426614,12278.86,NET,West Mercia Energy,11669Z
Gloucester City Council,23UE,Disabled Facilities Grants,CY013,Disabled Facility Grants,0074,Grant MDF5229,02/12/2016,426945,2623,CAP,Stroud Stairlifts,10315A
Gloucester City Council,23UE,Disabled Facilities Grants,CY013,Disabled Facility Grants,0074,Grant MDF5227,02/12/2016,426947,3348,CAP,Tvm Cheltenham Ltd,15826Q
Gloucester City Council,23UE,Disabled Facilities Grants,CY013,Disabled Facility Grants,0074,Grant MDF5211,02/12/2016,426946,819.75,CAP,Stroud Stairlifts,10315A
Gloucester City Council,23UE,Docks Complex - Services,RB100,Recycling,3631,Recycling,02/12/2016,426070,59.5,NET,Printwaste Recycling,57114W
Gloucester City Council,23UE,Docks Complex - Services,RB100,Recycling,3631,Recycling & Shredding,02/12/2016,426068,154.3,NET,Printwaste Recycling,57114W
Gloucester City Council,23UE,General Works Fund,RY203,Capital General Repairs & Main,0013,Door Operator,02/12/2016,426773,2499,CAP,Thyssenkrupp Elevator Uk Ltd,17194U
Gloucester City Council,23UE,Grants To Voluntary Sector,FG100,Members Allocation Fund,7100F,Members Allocation 16/17,02/12/2016,426943,400,NET,Quedgeley Wanderers Football Club,10199B
Gloucester City Council,23UE,Grants To Voluntary Sector,FG100,Members Allocation Fund,7100F,Members Allocation 16/17,02/12/2016,426944,475,NET,Quedgeley Parish Council,48506G
Gloucester City Council,23UE,REDACTED,REDACTED,REDACTED,REDACTED,REDACTED,02/12/2016,REDACTED,972,NET,REDACTED,REDACTED
Gloucester City Council,23UE,Hempsted Meadow Events,HM233,Service Charges,3020,Market Hall SC DEC16-MAR17,02/12/2016,426679,10215.08,NET,Workman Llp,11021M
Gloucester City Council,23UE,Homelessness Prevention,CH122,Basic Pay - Temporary Staff,2751,temporary staff w/e 26/11/16,02/12/2016,426838,478.41,NET,One To One Recruitment,04752H
Gloucester City Council,23UE,Nms Contract,HI102,Additional Non-Tender Items,6973,50 Ctns,02/12/2016,426407,984.5,NET,Polystar Plastics Ltd,01120C
Gloucester City Council,23UE,Off Street Car Parks,PP110,Lease Lines,5411,call out 25/10/16 to repair barrier,02/12/2016,426940,210,NET,Wps United Kingdom Ltd,16424K
Gloucester City Council,23UE,Retail Market - Landlord,HM300,Repair/Maint Of Fixed Plant,3006,planned maintenance,02/12/2016,424807,290,NET,Mitchells (Gloucester) Ltd,30160U
Gloucester City Council,23UE,Statutory Testing,RS310,Fees For Services Received,5350,Guildhall strobe repairs,02/12/2016,426601,440,NET,Allcoopers Ltd,52921E
Gloucester City Council,23UE,Statutory Testing,RS310,Fire Alarm Maintenance,3053,Guildhall fire alarm NOV16-OCT17,02/12/2016,426820,280.2,NET,Allcoopers Ltd,52921E
Gloucester City Council,23UE,Statutory Testing,RS310,Fire Alarm Maintenance,3053,printer paper for Guidlhall fire alarm,02/12/2016,426704,135.49,NET,Allcoopers Ltd,52921E
Gloucester City Council,23UE,The Fleece,RB530,General Repair/Maint Buildings,3000,Fleece Hotel works,02/12/2016,426832,1420,NET,Gooch Group Limited,05169F
Gloucester City Council,23UE,Coll Fund Revenue Account,ZC100,County Council Precept,7460,precept payment due 14/12/16,05/12/2016,426973,4168751.7,NET,Gloucestershire County Council,18650D
Gloucester City Council,23UE,Coll Fund Revenue Account,ZC100,Nndr Central Share,7474,BRR POOLING PAYMENT DUE 19/12/16,05/12/2016,426974,424982,NET,Gloucestershire County Council,18650D
Gloucester City Council,23UE,Coll Fund Revenue Account,ZC100,Nndr Tariff,7473,BRR POOLING PAYMENT DUE 19/12/16,05/12/2016,426975,1331309,NET,Stroud District Council,74737T
Gloucester City Council,23UE,Coll Fund Revenue Account,ZC100,Police Precept,7461,precept payment due 14/12/16,05/12/2016,426972,773478.2,NET,"Police & Crime Commissioner, Gloucestershire",49521B
Gloucester City Council,23UE,Employers Pension Contribs,ZR355,Pension Contribs Incl Backf,2901,pension deficit November 2016,05/12/2016,426971,238916.67,NET,Gloucestershire County Council,10614L
Gloucester City Council,23UE,Gl1 Emergency Works,RY160,Contract Payments,0020,Install Centrewire,05/12/2016,426785,2523,CAP,Glebe Contractors,07906U
Gloucester City Council,23UE,Registration Of Electors,RS400,Fees For Services Received,5350,hire for Gala Club 3/11/16,05/12/2016,426581,10,NET,Ermin Plant Hire & Services Ltd,14150V
Gloucester City Council,23UE,Registration Of Electors,RS400,Fees For Services Received,5350,polling station 3/11/16,05/12/2016,426540,450,NET,Longlevens Rfc Ltd,02805A
Gloucester City Council,23UE,Blackfriars,LA609,Security Services Fees,5351,NOV16 SIA door staff,06/12/2016,427094,206.25,NET,Nsgl Ltd,15246Y
Gloucester City Council,23UE,REDACTED,REDACTED,REDACTED,REDACTED,REDACTED,06/12/2016,REDACTED,1350,NET,REDACTED,REDACTED
Gloucester City Council,23UE,City Museum And Art Gallery,LM200,Publications For Sale,5064,goods for resale,06/12/2016,424598,70.86,NET,Keycraft Ltd,16508C
Gloucester City Council,23UE,City Museum Catering,LM202,Catering Provisions -Food,5110,food,06/12/2016,427043,7.14,NET,Total Produce Gloucester,12645E
Gloucester City Council,23UE,City Museum Catering,LM202,Catering Provisions -Food,5110,food,06/12/2016,427044,7.14,NET,Total Produce Gloucester,12645E
Gloucester City Council,23UE,City Museum Catering,LM202,Catering Provisions -Food,5110,food,06/12/2016,427045,7.14,NET,Total Produce Gloucester,12645E
Gloucester City Council,23UE,City Museum Catering,LM202,Catering Provisions -Food,5110,food,06/12/2016,427046,4.76,NET,Total Produce Gloucester,12645E
Gloucester City Council,23UE,City Museum Catering,LM202,Catering Provisions -Food,5110,food,06/12/2016,427047,4.76,NET,Total Produce Gloucester,12645E
Gloucester City Council,23UE,City Museum Catering,LM202,Catering Provisions -Food,5110,food,06/12/2016,427048,7.14,NET,Total Produce Gloucester,12645E
Gloucester City Council,23UE,City Museum Catering,LM202,Catering Provisions -Food,5110,food,06/12/2016,427049,7.14,NET,Total Produce Gloucester,12645E
Gloucester City Council,23UE,Civica Contract Revs & Bens,RT250,Fees For Services Received,5350,JAN16 Revs & Bens service,06/12/2016,426996,137797,NET,Civica Uk Ltd,10841X
Gloucester City Council,23UE,Civic Admin And Hospitality,RC210,Hire Of Taxis,4053,SEP-OCT16 chauffeuring services,06/12/2016,426999,938.5,NET,Chris Hall Chauffeuring,11660U
Gloucester City Council,23UE,Client Revs & Bens Contract,RT240,Bailiffs Fees,5368,VAT on fees collected,06/12/2016,426781,0,NET,Phoenix Commercial Collections Ltd,13435J
Gloucester City Council,23UE,Client Revs & Bens Contract,RT240,Bailiffs Fees,5368,VAT on fees collected,06/12/2016,426782,0,NET,Phoenix Commercial Collections Ltd,13435J
Gloucester City Council,23UE,Contact Centre,RB300,Basic Pay - Temporary Staff,2751,temporary staff w/e 27/11/16,06/12/2016,427073,300,NET,Eden Brown Ltd,03613C
Gloucester City Council,23UE,Council Streetcare Team,HI101,Fees For Services Received,5350,Bristol Road play area,06/12/2016,426674,230,NET,Three Counties Drain Service,44033V
Gloucester City Council,23UE,Council Streetcare Team,HI101,Fees For Services Received,5350,Meerbrook Way works,06/12/2016,426675,110,NET,Three Counties Drain Service,44033V
Gloucester City Council,23UE,Council Streetcare Team,HI101,Maint Of Grounds - General,3030,birdfeed,06/12/2016,427058,1.92,NET,Angell Pets Ltd,15773P
Gloucester City Council,23UE,Council Streetcare Team,HI101,Maint Of Grounds - General,3030,birdfeed,06/12/2016,427060,59.47,NET,Angell Pets Ltd,15773P
Gloucester City Council,23UE,Council Streetcare Team,HI101,Maint Of Grounds - General,3030,Enborne Close clearance works,06/12/2016,427013,90,NET,Rdb Safety Boat Ltd,13507J
Gloucester City Council,23UE,Crematorium,HC200,Memorial Plaques,5053,memorial plaque,06/12/2016,427035,190,NET,Steel & Stone (York),57204U
Gloucester City Council,23UE,Development Management,PT200,Microfilming / Cd-Rom Storage,5330,archival storage,06/12/2016,427000,51.78,NET,Transmedia Technology Ltd,08635T
Gloucester City Council,23UE,Docks Complex - Services,RB100,Catering Provisions -Food,5110,food,06/12/2016,427055,32.64,NET,Janes Pantry,24500W
Gloucester City Council,23UE,Flooding And Drainage,HE306,Other Minor Supplies Services,5590,Bristol Road site monitoring,06/12/2016,427003,180,NET,Elcot Environmental,12293P
Gloucester City Council,23UE,Flooding And Drainage,HE306,Other Minor Supplies Services,5590,Slimbridge Rd site monitoring,06/12/2016,427004,180,NET,Elcot Environmental,12293P
Gloucester City Council,23UE,Folk Museum,LM210,Publications For Sale,5064,goods for resale,06/12/2016,424598,195.84,NET,Keycraft Ltd,16508C
Gloucester City Council,23UE,Folk Museum,LM210,Publications For Sale,5064,goods for resale,06/12/2016,427005,19.92,NET,Half Moon Bay Ltd,08240F
Gloucester City Council,23UE,Folk Museum,LM210,Publications For Sale,5064,goods for resale,06/12/2016,427006,99.84,NET,Half Moon Bay Ltd,08240F
Gloucester City Council,23UE,Folk Museum,LM210,Publications For Sale,5064,Various Items,06/12/2016,426373,38.97,NET,Macmillan Distribution Ltd,54894L
Gloucester City Council,23UE,Folk Museum,LM210,Publications For Sale,5064,Various Items,06/12/2016,426416,1397.28,NET,Macmillan Distribution Ltd,54894L
Gloucester City Council,23UE,General Drainage Works,PY241,Contract Payments,0020,SEP16 project engineering services,06/12/2016,427075,6329.5,CAP,Ecostep Ltd,15511Z
Gloucester City Council,23UE,General Works Fund,RY203,Consultants Fees,0030,OCT16 CAD services,06/12/2016,427078,741,CAP,Graham Parker Environmental Design Solutions,16390B
Gloucester City Council,23UE,Gloscat S106,LY073,Contract Payments,0020,Bench & Plaque,06/12/2016,422073,1892,CAP,Cu Phosco Lighting Ltd,16452E
Gloucester City Council,23UE,Guildhall Bar And Caf�,LA210,Catering Provisions -Liquor,5111,suremix & suregas for bar,06/12/2016,427061,10.76,NET,Boc Ltd,59172L
Gloucester City Council,23UE,REDACTED,REDACTED,REDACTED,REDACTED,REDACTED,06/12/2016,REDACTED,106.82,NET,REDACTED,REDACTED
Gloucester City Council,23UE,REDACTED,REDACTED,REDACTED,REDACTED,REDACTED,06/12/2016,REDACTED,163,NET,REDACTED,REDACTED
Gloucester City Council,23UE,REDACTED,REDACTED,REDACTED,REDACTED,REDACTED,06/12/2016,REDACTED,163,NET,REDACTED,REDACTED
Gloucester City Council,23UE,REDACTED,REDACTED,REDACTED,REDACTED,REDACTED,06/12/2016,REDACTED,110.79,NET,REDACTED,REDACTED
Gloucester City Council,23UE,Guildhall Events,LA200,Advertising And Publicity,5702,SOMAC support,06/12/2016,427086,2500,NET,Marketing Gloucester Ltd,08925E
Gloucester City Council,23UE,REDACTED,REDACTED,REDACTED,REDACTED,REDACTED,06/12/2016,REDACTED,1545.33,NET,REDACTED,REDACTED
Gloucester City Council,23UE,REDACTED,REDACTED,REDACTED,REDACTED,REDACTED,06/12/2016,REDACTED,1500,NET,REDACTED,REDACTED
Gloucester City Council,23UE,REDACTED,REDACTED,REDACTED,REDACTED,REDACTED,06/12/2016,REDACTED,1250,NET,REDACTED,REDACTED
Gloucester City Council,23UE,REDACTED,REDACTED,REDACTED,REDACTED,REDACTED,06/12/2016,REDACTED,750,NET,REDACTED,REDACTED
Gloucester City Council,23UE,REDACTED,REDACTED,REDACTED,REDACTED,REDACTED,06/12/2016,REDACTED,2000,NET,REDACTED,REDACTED
Gloucester City Council,23UE,REDACTED,REDACTED,REDACTED,REDACTED,REDACTED,06/12/2016,REDACTED,450,NET,REDACTED,REDACTED
Gloucester City Council,23UE,REDACTED,REDACTED,REDACTED,REDACTED,REDACTED,06/12/2016,REDACTED,960,NET,REDACTED,REDACTED
Gloucester City Council,23UE,REDACTED,REDACTED,REDACTED,REDACTED,REDACTED,06/12/2016,REDACTED,2802,NET,REDACTED,REDACTED
Gloucester City Council,23UE,Guildhall Events,LA200,Fees For Services Received,5350,Lantern Procession 2016,06/12/2016,426987,4000,NET,Marketing Gloucester Ltd,08925E
Gloucester City Council,23UE,REDACTED,REDACTED,REDACTED,REDACTED,REDACTED,06/12/2016,REDACTED,600,NET,REDACTED,REDACTED
Gloucester City Council,23UE,REDACTED,REDACTED,REDACTED,REDACTED,REDACTED,06/12/2016,REDACTED,1115,NET,REDACTED,REDACTED
Gloucester City Council,23UE,REDACTED,REDACTED,REDACTED,REDACTED,REDACTED,06/12/2016,REDACTED,680,NET,REDACTED,REDACTED
Gloucester City Council,23UE,Guildhall Events,LA200,Security Services Fees,5351,NOV16 SIA door staff,06/12/2016,427094,535.25,NET,Nsgl Ltd,15246Y
Gloucester City Council,23UE,Homelessness,CH120,Removal And Storage Fees,5513,storage fees,06/12/2016,426817,239.14,NET,Advanced Removals & Storage Ltd,57142R
Gloucester City Council,23UE,Homelessness,CH120,Removal And Storage Fees,5513,storage fees,06/12/2016,426988,123.75,NET,Advanced Removals & Storage Ltd,57142R
Gloucester City Council,23UE,Homelessness,CH120,Removal And Storage Fees,5513,storage fees,06/12/2016,426989,302.46,NET,Advanced Removals & Storage Ltd,57142R
Gloucester City Council,23UE,REDACTED,REDACTED,REDACTED,REDACTED,REDACTED,06/12/2016,REDACTED,240,CAP,REDACTED,REDACTED
Gloucester City Council,23UE,Investment Property,RB500,Fire Alarm Maintenance,3053,Installation of Fire Alarm,06/12/2016,426821,395,NET,A & E Fire Equipment Limited,54289L
Gloucester City Council,23UE,Off Street Car Parks,PP110,Rents,3200,Rent,06/12/2016,426774,220,NET,Eddisons Commercial (Property Management) Ltd,08767Y
Gloucester City Council,23UE,Printing,RP103,Printing,5300,printing,06/12/2016,427081,141.25,NET,Alpha Colour Printers Ltd,00945B
Gloucester City Council,23UE,Ranger Centre/Netheridge Wks,RY167,Contract Payments,0020,hose & fittings,06/12/2016,427037,37.4,CAP,Pirtek,48699R
Gloucester City Council,23UE,Registration Of Electors,RS400,Postages,5400,acct 0870585031,06/12/2016,427080,584.76,NET,Royal Mail S.Wales & South West,35830S
Gloucester City Council,23UE,Retail Market - Landlord,HM300,Window Cleaning,3610,window cleaning,06/12/2016,427001,240,NET,Cornwall Cleaning Services,14050A
Gloucester City Council,23UE,Retail Market - Landlord,HM300,Window Cleaning,3610,window cleaning,06/12/2016,427002,260,NET,Cornwall Cleaning Services,14050A
Gloucester City Council,23UE,Solace Project,FP843,Other Minor Supplies Services,5590,ASB June 2016,06/12/2016,420789,3250,NET,Gloucester City Homes,05244T
Gloucester City Council,23UE,The Arbor,HC501,Catering Provisions -Food,5110,Food w/e 16/10/2016,06/12/2016,425153,144.74,NET,Janes Pantry,24500W
Gloucester City Council,23UE,The Arbor,HC501,Catering Provisions -Food,5110,Food w/e 23/10/2016,06/12/2016,425423,170.45,NET,Janes Pantry,24500W
Gloucester City Council,23UE,The Arbor,HC501,Cleaning Materials,3600,Disposal Unit,06/12/2016,426059,17.28,NET,Minster Cleaning Services,02158R
Gloucester City Council,23UE,The Fleece,RB530,General Repair/Maint Buildings,3000,No Parking signs for The Fleece,06/12/2016,427036,138,NET,Hanman Split Ltd,56889J
Gloucester City Council,23UE,Tourism Marketing,LT100,Window Cleaning,3610,Window Cleaning,06/12/2016,426798,12,NET,Interserve Fs (Uk) Limited,00442K
Gloucester City Council,23UE,Tree Planting Grant Funded,LY150,Contract Payments,0020,tree guards & tree stakes,06/12/2016,426994,1277,CAP,Maxwell Amenity Ltd,00960F
Gloucester City Council,23UE,Vehicles,RS140,Fuel,4012,vehicle fuel,06/12/2016,426963,358.54,NET,Allstar Business Solutions Ltd (Arval),06594A
Gloucester City Council,23UE,City Museum And Art Gallery,LM200,Advertising And Publicity,5702,Xmas printed guide,07/12/2016,426375,125,NET,Cds Publications,59644P
Gloucester City Council,23UE,City Museum And Art Gallery,LM200,Publications For Sale,5064,goods for resale,07/12/2016,427039,354.9,NET,Half Moon Bay Ltd,08240F
Gloucester City Council,23UE,City Museum And Art Gallery,LM200,Publications For Sale,5064,goods for resale,07/12/2016,427056,48.69,NET,Half Moon Bay Ltd,08240F
Gloucester City Council,23UE,City Museum And Art Gallery,LM200,Security Services Fees,5351,Monitoring & Maintenance,07/12/2016,427098,317.28,NET,Secom Plc,51471A
Gloucester City Council,23UE,City Museum And Art Gallery,LM200,Security Services Fees,5351,Rental Maintenance,07/12/2016,427097,46.31,NET,Secom Plc,51471A
Gloucester City Council,23UE,Client Revs & Bens Contract,RT240,Bailiffs Fees,5368,VAT on statutory fees,07/12/2016,425648,0,NET,Bristow & Sutor,05450M
Gloucester City Council,23UE,Client Revs & Bens Contract,RT240,Bailiffs Fees,5368,VAT on statutory fees,07/12/2016,427023,0,NET,Bristow & Sutor,05450M
Gloucester City Council,23UE,Corporate Reporting /Financing,RC504,Fees For Services Received,5350,Childcare Vouchers,07/12/2016,427016,46.57,NET,Wider Plan Ltd ( Formerly Kiddivouchers),07893B
Gloucester City Council,23UE,Disabled Facilities Grants,CY013,Disabled Facility Grants,0074,"final fee, grant MDF 5217",07/12/2016,427157,14857,CAP,Terry Group Ltd,13844L
Gloucester City Council,23UE,Docks Complex - Services,RB100,Catering Provisions -Food,5110,Buffet Menu,07/12/2016,427054,24.48,NET,Janes Pantry,24500W
Gloucester City Council,23UE,Economic Development,FP300,Fees For Services Received,5350,Fees re Gloucester BID,07/12/2016,427158,7000,NET,Marketing Gloucester Ltd,08925E
Gloucester City Council,23UE,Folk Museum,LM210,Advertising And Publicity,5702,Xmas printed guide,07/12/2016,426375,125,NET,Cds Publications,59644P
Gloucester City Council,23UE,Folk Museum,LM210,Publications For Sale,5064,Various Items,07/12/2016,426362,199.74,NET,Professor Puzzle Ltd,15520Y
Gloucester City Council,23UE,General Drainage Works,PY241,Contract Payments,0020,BARNWOOD PARK POND FENCING,07/12/2016,427011,900,CAP,Rj Contracting (Environmental) Ltd,07429H
Gloucester City Council,23UE,General Drainage Works,PY241,Contract Payments,0020,Project Engineer Services November 2016,07/12/2016,427159,5505.2,CAP,Ecostep Ltd,15511Z
Gloucester City Council,23UE,Guildhall Bar And Caf�,LA210,Catering Provisions -Food,5110,Food w/e 13/11/2016,07/12/2016,426435,73.8,NET,Janes Pantry,24500W
Gloucester City Council,23UE,Guildhall Bar And Caf�,LA210,Catering Provisions -Food,5110,food w/e 27/11/16,07/12/2016,426872,40.9,NET,Janes Pantry,24500W
Gloucester City Council,23UE,REDACTED,REDACTED,REDACTED,REDACTED,REDACTED,07/12/2016,REDACTED,0,NET,REDACTED,REDACTED
Gloucester City Council,23UE,REDACTED,REDACTED,REDACTED,REDACTED,REDACTED,07/12/2016,REDACTED,160,NET,REDACTED,REDACTED
Gloucester City Council,23UE,Homelessness,CH120,Rent In Advance,5516,HOUSING RIA & DEPOSIT,07/12/2016,427151,272.72,NET,Acorn Residential Lettings,16600P
Gloucester City Council,23UE,Homelessness Prevention,CH122,Fees For Services Received,5350,HOUSING RIA & DEPOSIT,07/12/2016,427151,385,NET,Acorn Residential Lettings,16600P
Gloucester City Council,23UE,Investment Property,RB500,Repair/Maint Of Fixed Plant,3006,Install replacement inverter,07/12/2016,427074,1740,NET,M & E Maintenance Solutions Ltd,16463Z
Gloucester City Council,23UE,Kings Quarter,RY146,Contract Payments,0020,Gloucester Bus Station,07/12/2016,427076,65153.68,CAP,Kier Construction - Central,17200B
Gloucester City Council,23UE,Kings Quarter,RY146,Contract Payments,0020,Gloucester Transport Scheme costs,07/12/2016,419806,104903.78,CAP,Gloucestershire County Council,18650D
Gloucester City Council,23UE,Nms Contract,HI102,Contracted Services,6970,December 2016 Service Fee,07/12/2016,427088,478446.3,NET,Enterprise (Aol) Ltd,06695G
Gloucester City Council,23UE,Nms Contract,HI102,Contracted Services,6970,November Commodity top up,07/12/2016,427087,25856,NET,Enterprise (Aol) Ltd,06695G
Gloucester City Council,23UE,Parks Contract Management,LP100,Maint Of Grounds - General,3030,Re-tension zip wires,07/12/2016,427042,150,NET,Greenfields Garden Services Ltd,48130G
Gloucester City Council,23UE,Play Area Refurbishment,LY071,Contract Payments,0020,Parry Field - Picnic Tables,07/12/2016,427041,320,CAP,Greenfields Garden Services Ltd,48130G
Gloucester City Council,23UE,Pollution Control,HE300,Fees For Services Received,5350,Analysis,07/12/2016,426836,20.1,NET,Gradko International Ltd,11063B
Gloucester City Council,23UE,Printing,RP103,Printing,5300,printing,07/12/2016,426995,834,NET,Alpha Colour Printers Ltd,00945B
Gloucester City Council,23UE,Rehousing,CH111,Fees For Services Received,5350,Medical Reports,07/12/2016,427024,20.5,NET,Gloucester City Health Centre,02093U
Gloucester City Council,23UE,Blackfriars,LA609,Fees For Services Received,5350,temporary staff w/e 27/11/16,08/12/2016,427083,185.31,NET,Re People,17253D
Gloucester City Council,23UE,Cemeteries,HC300,Trade Refuse Tipping Fees,6297,skip exchange,08/12/2016,427090,640,NET,Allstone Sand & Gravel Aggregates Ltd,00940M
Gloucester City Council,23UE,Cemeteries,HC300,Trade Refuse Tipping Fees,6297,skip exchange,08/12/2016,427091,420,NET,Allstone Sand & Gravel Aggregates Ltd,00940M
Gloucester City Council,23UE,Development Management,PT200,Basic Pay - Temporary Staff,2751,temporary staff 30/11/16,08/12/2016,427031,2133.95,NET,The Oyster Partnership Limited,14900T
Gloucester City Council,23UE,Development Management,PT200,Basic Pay - Temporary Staff,2751,temporary staff 30/11/16,08/12/2016,427029,1560,NET,The Oyster Partnership Limited,14900T
Gloucester City Council,23UE,Development Management,PT200,Basic Pay - Temporary Staff,2751,temporary staff 30/11/16,08/12/2016,427032,1543.62,NET,The Oyster Partnership Limited,14900T
Gloucester City Council,23UE,REDACTED,REDACTED,REDACTED,REDACTED,REDACTED,08/12/2016,REDACTED,60,NET,REDACTED,REDACTED
Gloucester City Council,23UE,Guildhall Bar And Caf�,LA210,Fees For Services Received,5350,temporary staff 27/11/16,08/12/2016,427082,112.3,NET,Re People,17253D
Gloucester City Council,23UE,REDACTED,REDACTED,REDACTED,REDACTED,REDACTED,08/12/2016,REDACTED,1151.2,NET,REDACTED,REDACTED
Gloucester City Council,23UE,REDACTED,REDACTED,REDACTED,REDACTED,REDACTED,08/12/2016,REDACTED,65,NET,REDACTED,REDACTED
Gloucester City Council,23UE,Health Administration,HA200,Vocational Training,2970,12 Month Subscription,08/12/2016,425906,95,NET,Abc Food Law Ltd,14734K
Gloucester City Council,23UE,REDACTED,REDACTED,REDACTED,REDACTED,REDACTED,08/12/2016,REDACTED,280,NET,REDACTED,REDACTED
Gloucester City Council,23UE,REDACTED,REDACTED,REDACTED,REDACTED,REDACTED,08/12/2016,REDACTED,368.2,NET,REDACTED,REDACTED
Gloucester City Council,23UE,Investment Property,RB500,Rents,3200,Rent for quarter 25/12,08/12/2016,427063,5725,NET,P W Fido & Associates,01210A
Gloucester City Council,23UE,Kings Quarter,RY146,Contract Payments,0020,Site Attendance,08/12/2016,426387,2353,CAP,Cotswold Archaeology Ltd,09180E
Gloucester City Council,23UE,Kings Quarter,RY146,Contract Payments,0020,Water Main Diversion,08/12/2016,427223,12000,CAP,Severn Trent Water,01823H
Gloucester City Council,23UE,Off Street Car Parks,PP110,General Repair/Maint Buildings,3000,Out of hours drain cleaning,08/12/2016,427027,1880,NET,Three Counties Drain Service,44033V
Gloucester City Council,23UE,Pest Control,HD400,Fees For Services Received,5350,Gull Treatment,08/12/2016,427026,6669,NET,Mitie Pest Control Ltd,15737U
Gloucester City Council,23UE,Planning Policy & Heritage,PT300,Basic Pay - Temporary Staff,2751,temporary staff 30/11/16,08/12/2016,427030,2267,NET,The Oyster Partnership Limited,14900T
Gloucester City Council,23UE,Ranger Centre/Netheridge Wks,RY167,Contract Payments,0020,Postcrete,08/12/2016,427065,12.87,CAP,B&Q Trade Account,06346Y
Gloucester City Council,23UE,Ranger Centre/Netheridge Wks,RY167,Contract Payments,0020,Rope,08/12/2016,427033,28.32,CAP,Screwfix Direct,54672H
Gloucester City Council,23UE,Shopmobility,PE200,Cleaning Materials,3600,DEC16 sanitary waste disposal,08/12/2016,426869,12.91,NET,Ocs Group Uk Limited T/A Cannon,06506A
Gloucester City Council,23UE,The Arbor,HC501,Catering Provisions -Food,5110,food w/e 27/11/16,08/12/2016,426871,97.98,NET,Janes Pantry,24500W
Gloucester City Council,23UE,City Centre Public Realm,GY014,Contract Payments,0020,City Dressing & Signage,09/12/2016,427339,12706,CAP,Marketing Gloucester Ltd,08925E
Gloucester City Council,23UE,Civica Admin Charges,RT105,Postages,5400,Post 08/11 - 25/11 2016,09/12/2016,427072,1293.72,NET,Royal Mail S.Wales & South West,35830S
Gloucester City Council,23UE,Gloucester Guildhall,LA100,Cleaning Materials,3600,Cleaner Fluid,09/12/2016,425270,148.4,NET,Total Floor Care (Bridgewater) Ltd,17228C
Gloucester City Council,23UE,Grants To Voluntary Sector,FG100,Grants,7100C,Members Allocation - Cllr Toleman,09/12/2016,427380,210.22,NET,St Oswalds Village And Residents Association,16226S
Gloucester City Council,23UE,Guildhall Lettings,LA400,Materials For Sale,5080,Client Sessions,09/12/2016,427392,20,NET,Gloucestershire Music Makers,13755L
Gloucester City Council,23UE,Guildhall Lettings,LA400,Sale Of Goods And Services,9230,Client Sessions,09/12/2016,427392,-4,NET,Gloucestershire Music Makers,13755L
Gloucester City Council,23UE,REDACTED,REDACTED,REDACTED,REDACTED,REDACTED,09/12/2016,REDACTED,189,NET,REDACTED,REDACTED
Gloucester City Council,23UE,Homelessness,CH120,Board And Lodging,5515,Various tenants - Nov 16,09/12/2016,427384,5855.28,NET,James Legge Property (Ltd),07844R
Gloucester City Council,23UE,Homelessness,CH120,Board And Lodging,5515,Various tenants - Nov 16,09/12/2016,427388,3408.64,NET,Kalmwood Ltd,08568G
Gloucester City Council,23UE,Homelessness,CH120,Board And Lodging,5515,Various tenants - Nov 16,09/12/2016,427390,3425.63,NET,Carbrey Housing Ltd,11098G
Gloucester City Council,23UE,Homelessness,CH120,Board And Lodging,5515,Various tenants - Nov 16,09/12/2016,427387,7442.32,NET,REDACTED,REDACTED
Gloucester City Council,23UE,Homelessness,CH120,Board And Lodging,5515,Various tenants - Nov 16,09/12/2016,427391,3969.4,NET,Dorchester Guest House,12298D
Gloucester City Council,23UE,REDACTED,REDACTED,REDACTED,REDACTED,REDACTED,09/12/2016,REDACTED,8212.4,NET,REDACTED,REDACTED
Gloucester City Council,23UE,REDACTED,REDACTED,REDACTED,REDACTED,REDACTED,09/12/2016,REDACTED,828.8,NET,REDACTED,REDACTED
Gloucester City Council,23UE,REDACTED,REDACTED,REDACTED,REDACTED,REDACTED,09/12/2016,REDACTED,3123.27,NET,REDACTED,REDACTED
Gloucester City Council,23UE,Rehousing,CH111,Fees For Services Received,5350,medical report,09/12/2016,427084,38.5,NET,Partners In Health,06868K
Gloucester City Council,23UE,Retail Market - Landlord,HM300,Cleaning / Domestic Equipment,5011,Services December 2016,09/12/2016,426399,20.52,NET,Initial Washroom Solutions,06143R
Gloucester City Council,23UE,Retail Market - Landlord,HM300,Trade Refuse Collection,3630,skip hire - Eastgate Market,09/12/2016,427089,300,NET,Allstone Sand & Gravel Aggregates Ltd,00940M
Gloucester City Council,23UE,Safer Stronger Communities,FP841,Other Minor Supplies Services,5590,Contribution,09/12/2016,427092,417,NET,Gloucestershire County Council,18650D
Gloucester City Council,23UE,The Arbor,HC501,Catering Provisions -Food,5110,food,09/12/2016,425328,334.79,NET,Bidvest Foodservice (3663),55585U
Gloucester City Council,23UE,Civic Admin And Hospitality,RC210,Hire Of Taxis,4053,November 2016,12/12/2016,427350,262.5,NET,Chris Hall Chauffeuring,11660U
Gloucester City Council,23UE,Council Streetcare Team,HI101,Maint Of Grounds - General,3030,Bird Seed,12/12/2016,427343,7.33,NET,Angell Pets Ltd,15773P
Gloucester City Council,23UE,Gloucester Guildhall,LA100,Cleaning Materials,3600,Sprenkler mop,12/12/2016,427352,86.5,NET,Total Floor Care (Bridgewater) Ltd,17228C
Gloucester City Council,23UE,Gloucester Guildhall,LA100,Licences,5703,Licence,12/12/2016,427342,443.88,NET,Ppl,49860Z
Gloucester City Council,23UE,REDACTED,REDACTED,REDACTED,REDACTED,REDACTED,12/12/2016,REDACTED,479.42,NET,REDACTED,REDACTED
Gloucester City Council,23UE,REDACTED,REDACTED,REDACTED,REDACTED,REDACTED,12/12/2016,REDACTED,77.88,NET,REDACTED,REDACTED
Gloucester City Council,23UE,REDACTED,REDACTED,REDACTED,REDACTED,REDACTED,12/12/2016,REDACTED,72,NET,REDACTED,REDACTED
Gloucester City Council,23UE,Nms Contract,HI102,Fees For Services Received,5350,kerbside boxes,12/12/2016,427052,13009.92,NET,Straight Plc,50537E
Gloucester City Council,23UE,Nms Contract,HI102,Fees For Services Received,5350,kerbside boxes,12/12/2016,427053,13009.92,NET,Straight Plc,50537E
Gloucester City Council,23UE,Off Street Car Parks,PP110,Rents,3200,Eastgate car park SC DEC16-MAR17,12/12/2016,426680,65315.82,NET,Workman Llp,11021M
Gloucester City Council,23UE,Off Street Car Parks,PP110,Rents,3200,Kings Walk RIA DEC16-MAY17,12/12/2016,426677,46250,NET,Colliers International,15540S
Gloucester City Council,23UE,Shopmobility,PE200,Maintenance Of Equipment,5030,Repairs & Replacements,12/12/2016,426571,104,NET,Disabled Care & Mobility,12675V
Gloucester City Council,23UE,The Arbor,HC501,Catering Provisions -Food,5110,Food,12/12/2016,427347,37.75,NET,Bidvest Foodservice (3663),55585U
Gloucester City Council,23UE,The Arbor,HC501,Catering Provisions -Food,5110,Food,12/12/2016,427348,339.36,NET,Bidvest Foodservice (3663),55585U
Gloucester City Council,23UE,Aspire Admin Charges,LC105,Contracted Services,6970,management fees,13/12/2016,427248,38125.58,NET,Aspire Sports & Cultural Trust,08135V
Gloucester City Council,23UE,Business Transformation & Tech,RT700,Internet Service Provider Fees,5429,acct 513231401,13/12/2016,427325,39,NET,Virgin Media Payments Ltd,09376J
Gloucester City Council,23UE,Cemeteries,HC300,Fuel,4012,Gasoil,13/12/2016,427361,470,NET,Cpl Petroleum,55192U
Gloucester City Council,23UE,Cemeteries,HC300,Tyres,4014,Various Items,13/12/2016,427368,54.14,NET,Ats Euromaster Ltd,06005E
Gloucester City Council,23UE,City Museum And Art Gallery,LM200,Exhibits And Collections,5038,food for 24/11/16,13/12/2016,427068,240,NET,Catercater Ltd,08620G
Gloucester City Council,23UE,Contact Centre,RB300,Postages,5400,Response Plus Service,13/12/2016,423135,39.17,NET,Royal Mail S.Wales & South West,35830S
Gloucester City Council,23UE,Contact Centre,RB300,Publications,5060,newspapers,13/12/2016,427279,181.25,NET,Ymk Supermarket,55281U
Gloucester City Council,23UE,Countryside Unit,LP201,Maint Of Grounds - General,3030,Sanitary waste NOV16-MAY17,13/12/2016,425464,73.99,NET,Ocs Group Uk Limited T/A Cannon,06506A
Gloucester City Council,23UE,Docks Complex - Services,RB100,Catering Provisions -Food,5110,food,13/12/2016,427295,16.13,NET,Total Produce Gloucester,12645E
Gloucester City Council,23UE,Docks Complex - Services,RB100,Catering Provisions -Food,5110,food,13/12/2016,427296,12.28,NET,Total Produce Gloucester,12645E
Gloucester City Council,23UE,Docks Complex - Services,RB100,Catering Provisions -Food,5110,food,13/12/2016,427297,16.85,NET,Total Produce Gloucester,12645E
Gloucester City Council,23UE,Docks Complex - Services,RB100,Fire Smoke Detection System,3059,Engineers 13/10/2016,13/12/2016,427379,1038,NET,Brakel Airvent Ltd,51073T
Gloucester City Council,23UE,Emergency Planning,RO100,Fees For Services Received,5350,Emergency Management 16-17,13/12/2016,427331,14474.33,NET,Gloucestershire County Council,18650D
Gloucester City Council,23UE,Financial Services,RT200,Vocational Training,2970,Land and Property VAT training,13/12/2016,427309,350,NET,Pricewaterhousecoopers Llp,02419K
Gloucester City Council,23UE,Group Mgr Cult Ser & Tourism,GR102,Consultants Fees,5349,Development & Submission of complaint,13/12/2016,426410,4675,NET,Festivals And Events International Ltd,15992Z
Gloucester City Council,23UE,Guildhall Bar And Caf�,LA210,Catering Provisions -Food,5110,Food,13/12/2016,427328,111.42,NET,Woodward Foodservice,10714F
Gloucester City Council,23UE,Guildhall Bar And Caf�,LA210,Catering Provisions -Food,5110,Food,13/12/2016,427329,179.51,NET,Woodward Foodservice,10714F
Gloucester City Council,23UE,Guildhall Bar And Caf�,LA210,Catering Provisions -Food,5110,Food,13/12/2016,427330,138.7,NET,Woodward Foodservice,10714F
Gloucester City Council,23UE,Guildhall Events,LA200,Advertising And Publicity,5702,Advertisement Oct 2016,13/12/2016,427341,180,NET,Local World Ltd,08556P
Gloucester City Council,23UE,Guildhall Events,LA200,Fees For Services Received,5350,flyers,13/12/2016,427286,95.8,NET,Fatflyers.Com,15810K
Gloucester City Council,23UE,REDACTED,REDACTED,REDACTED,REDACTED,REDACTED,13/12/2016,REDACTED,150,NET,REDACTED,REDACTED
Gloucester City Council,23UE,REDACTED,REDACTED,REDACTED,REDACTED,REDACTED,13/12/2016,REDACTED,140,NET,REDACTED,REDACTED
Gloucester City Council,23UE,Homelessness,CH120,Fees For Services Received,5350,Medical Reports,13/12/2016,427364,20.5,NET,Gloucester City Health Centre,02093U
Gloucester City Council,23UE,Homelessness,CH120,Fees For Services Received,5350,Medical Reports,13/12/2016,427366,260,NET,Now Medical,03468L
Gloucester City Council,23UE,REDACTED,REDACTED,REDACTED,REDACTED,REDACTED,13/12/2016,REDACTED,1655,CAP,REDACTED,REDACTED
Gloucester City Council,23UE,Kings Sq/Cherry & White Market,HM210,Trade Refuse Collection,3630,Collection of Cardboard,13/12/2016,417278,13.32,NET,Enterprise (Aol) Ltd,06695G
Gloucester City Council,23UE,Licences,HE510,Fees For Services Received,5350,Albert - Polly Pocket visit,13/12/2016,425466,48.33,NET,Cheltenham Equine Vets,17230S
Gloucester City Council,23UE,Marchants,LT108,Materials For Sale,5080,Sales on tickets August 16,13/12/2016,427354,4382,NET,Marchants Coaches Ltd,48151Y
Gloucester City Council,23UE,Marchants,LT108,Materials For Sale,5080,Sales on tickets July 16,13/12/2016,427353,2379,NET,Marchants Coaches Ltd,48151Y
Gloucester City Council,23UE,Marchants,LT108,Materials For Sale,5080,Sales on tickets October 2016,13/12/2016,427355,2114,NET,Marchants Coaches Ltd,48151Y
Gloucester City Council,23UE,Meet & Greet,FP309,Advertising And Publicity,5702,tickets sold on commission,13/12/2016,427207,295,NET,Coach Tourism Council,48015H
Gloucester City Council,23UE,National Express,LT105,Materials For Sale,5080,tickets sold on commisison,13/12/2016,427326,9874.1,NET,National Express Ltd,31455K
Gloucester City Council,23UE,National Express,LT105,Sale Of Goods And Services,9230,tickets sold on commisison,13/12/2016,427326,-481.34,NET,National Express Ltd,31455K
Gloucester City Council,23UE,REDACTED,REDACTED,REDACTED,REDACTED,REDACTED,13/12/2016,REDACTED,10000,CAP,REDACTED,REDACTED
Gloucester City Council,23UE,Rehousing,CH111,Fees For Services Received,5350,Medical Report,13/12/2016,427367,20.5,NET,Gloucester City Health Centre,02093U
Gloucester City Council,23UE,Retail Market - Landlord,HM300,Operational Equipment <5000,5012,lamps,13/12/2016,427314,92.4,NET,City Electrical Factors,09325C
Gloucester City Council,23UE,Retail Market - Landlord,HM300,Sewerage And Environ Charges,3402,bi-monthly drain check,13/12/2016,427298,180,NET,The Drain Man Ltd,16460F
Gloucester City Council,23UE,Statutory Testing,RS310,Fire Alarm Maintenance,3053,Ranger centre intruder alarm,13/12/2016,422158,70,NET,Adt Fire & Security Plc,54086D
Gloucester City Council,23UE,The Arbor,HC501,Catering Provisions -Food,5110,food,13/12/2016,427282,29.76,NET,Total Produce Gloucester,12645E
Gloucester City Council,23UE,The Arbor,HC501,Catering Provisions -Liquor,5111,drinks,13/12/2016,427280,78.18,NET,Cellar Supplies Cheltenham Ltd,01563L
Gloucester City Council,23UE,Theatre Tokens,LT106,Materials For Sale,5080,Tickets sold on commission,13/12/2016,427324,120,NET,Society Of London Theatre,05656Z
Gloucester City Council,23UE,Theatre Tokens,LT106,Sale Of Goods And Services,9230,Tickets sold on commission,13/12/2016,427324,-6,NET,Society Of London Theatre,05656Z
Gloucester City Council,23UE,REDACTED,REDACTED,REDACTED,REDACTED,REDACTED,13/12/2016,REDACTED,600.9,NET,REDACTED,REDACTED
Gloucester City Council,23UE,REDACTED,REDACTED,REDACTED,REDACTED,REDACTED,13/12/2016,REDACTED,-50.08,NET,REDACTED,REDACTED
Gloucester City Council,23UE,Vehicles,RS140,Routine R And M - Vehicles,4011,Credited,13/12/2016,427415,73.8,NET,Automobile Association,58743W
Gloucester City Council,23UE,Vehicles,RS140,Routine R And M - Vehicles,4011,Fleetwide 4,13/12/2016,425907,369,NET,Automobile Association,58743W
Gloucester City Council,23UE,Blackfriars,LA609,Advertising And Publicity,5702,12 month listing DEC16-DEC17,14/12/2016,427466,749,NET,Hitched Limited,16221C
Gloucester City Council,23UE,Business Transformation & Tech,RT700,Computer Hardware Maintenance,5426,NOV16-NOV17 essential coverage,14/12/2016,427468,2764,NET,Emerson Network Power Ltd,48138P
Gloucester City Council,23UE,Cems/Crems Admin,HC100,Reimbursements,5591,refund of overpayment re HCV096,14/12/2016,427472,122,NET,Chief Vehicle Rentals,14169X
Gloucester City Council,23UE,Christmas Lights,GY006,Contract Payments,0020,Southgate Street,14/12/2016,427038,1207.5,CAP,Blachere Illuminations Uk Ltd,15818T
Gloucester City Council,23UE,REDACTED,REDACTED,REDACTED,REDACTED,REDACTED,14/12/2016,REDACTED,245,NET,REDACTED,REDACTED
Gloucester City Council,23UE,Contaminated Land,HE301,Fees For Services Received,5350,SEP16 contaminated land works,14/12/2016,427244,1181.04,NET,Bromsgrove District Council,15037G
Gloucester City Council,23UE,Development Management,PT200,Basic Pay - Temporary Staff,2751,temporary staff,14/12/2016,427312,1260.87,NET,The Oyster Partnership Limited,14900T
Gloucester City Council,23UE,Dog Warden,HE400,Fees For Services Received,5350,Stray Dog service SEP16,14/12/2016,427245,2933.58,NET,Bromsgrove District Council,15754U
Gloucester City Council,23UE,Financial Services,RT200,Fees For Services Received,5350,Christmas Lights,14/12/2016,426682,5700.5,NET,Blachere Illuminations Uk Ltd,15818T
Gloucester City Council,23UE,Financial Services,RT200,Fees For Services Received,5350,christmas lights ex-hire,14/12/2016,426683,5214,NET,Blachere Illuminations Uk Ltd,15818T
Gloucester City Council,23UE,REDACTED,REDACTED,REDACTED,REDACTED,REDACTED,14/12/2016,REDACTED,300,NET,REDACTED,REDACTED
Gloucester City Council,23UE,Guildhall Events,LA200,Advertising And Publicity,5702,strike a light - Breaking the Ice,14/12/2016,427473,250,NET,Soglos,07953J
Gloucester City Council,23UE,REDACTED,REDACTED,REDACTED,REDACTED,REDACTED,14/12/2016,REDACTED,1000,NET,REDACTED,REDACTED
Gloucester City Council,23UE,REDACTED,REDACTED,REDACTED,REDACTED,REDACTED,14/12/2016,REDACTED,200,NET,REDACTED,REDACTED
Gloucester City Council,23UE,REDACTED,REDACTED,REDACTED,REDACTED,REDACTED,14/12/2016,REDACTED,1330,NET,REDACTED,REDACTED
Gloucester City Council,23UE,Homelessness Prevention,CH122,Basic Pay - Temporary Staff,2751,temporary staff,14/12/2016,427320,478.41,NET,One To One Recruitment,04752H
Gloucester City Council,23UE,REDACTED,REDACTED,REDACTED,REDACTED,REDACTED,14/12/2016,REDACTED,489.44,NET,REDACTED,REDACTED
Gloucester City Council,23UE,REDACTED,REDACTED,REDACTED,REDACTED,REDACTED,14/12/2016,REDACTED,900,NET,REDACTED,REDACTED
Gloucester City Council,23UE,Nms Contract,HI102,Fees For Services Received,5350,Kerbside Box,14/12/2016,427363,11406.78,NET,Straight Plc,50537E
Gloucester City Council,23UE,Off Street Car Parks,PP110,Lease Lines,5411,Replacement exit terminal,14/12/2016,427249,255,NET,Wps United Kingdom Ltd,16424K
Gloucester City Council,23UE,Planning Policy & Heritage,PT300,Computer Software <5000,5425,Planning Policy consultation hosting,14/12/2016,426698,12220,NET,Inovem Ltd,15142J
Gloucester City Council,23UE,Pollution Control,HE300,Fees For Services Received,5350,SEP16 Pollution Control works,14/12/2016,427243,740.25,NET,Bromsgrove District Council,15037G
Gloucester City Council,23UE,Registration Of Electors,RS400,Fees For Services Received,5350,Electoral Registration fees JUL-SEP16,14/12/2016,427465,3829.63,NET,Electoral Reform Services,02206F
Gloucester City Council,23UE,Statutory Testing,RS310,Legionella,3018,domestic monitoring DEC16-FEB17,14/12/2016,427250,3146.25,NET,Kingfisher Environmental Services Ltd,04738V
Gloucester City Council,23UE,The Arbor,HC501,Catering Provisions -Food,5110,food,14/12/2016,427281,343.48,NET,Bidvest Foodservice (3663),55585U
Gloucester City Council,23UE,The Arbor,HC501,Catering Provisions -Food,5110,Food,14/12/2016,427327,337.33,NET,Bidvest Foodservice (3663),55585U
Gloucester City Council,23UE,The Arbor,HC501,Catering Provisions -Food,5110,Food,14/12/2016,427349,192.87,NET,Bidvest Foodservice (3663),55585U
Gloucester City Council,23UE,The Arbor,HC501,Catering Provisions -Food,5110,Food,14/12/2016,427370,258.72,NET,Bidvest Foodservice (3663),55585U
Gloucester City Council,23UE,The Arbor,HC501,Catering Provisions -Food,5110,Food,14/12/2016,427371,399.45,NET,Bidvest Foodservice (3663),55585U
Gloucester City Council,23UE,Cemeteries,HC300,Maint Of Grounds - General,3030,PLYWOOD & STAKES,15/12/2016,427548,390.3,NET,Millington & Ramstedt Ltd,29815S
Gloucester City Council,23UE,Civica Contract Revs & Bens,RT250,Contracted Services,6970,NOV16 pension excess,15/12/2016,427500,11059.41,NET,Civica Uk Ltd,10841X
Gloucester City Council,23UE,Civica It Contract,RT270,Contracted Services,6970,JAN16 ICT manages services,15/12/2016,426993,48061.14,NET,Civica Uk Ltd,10841X
Gloucester City Council,23UE,Civica It Contract,RT270,Contracted Services,6970,NOV16 pension excess,15/12/2016,427499,904.72,NET,Civica Uk Ltd,10841X
Gloucester City Council,23UE,Contact Centre,RB300,Basic Pay - Temporary Staff,2751,temporary staff,15/12/2016,427541,630,NET,Eden Brown Ltd,03613C
Gloucester City Council,23UE,Contact Centre,RB300,Other Minor Supplies Services,5590,out of hours service,15/12/2016,427509,291.9,NET,Worcestershire Telecare,16419C
Gloucester City Council,23UE,Contact Centre,RB300,Postages,5400,envelopes,15/12/2016,427524,144.78,NET,Encore Envelopes Ltd,13782H
Gloucester City Council,23UE,Contact Centre,RB300,Postages,5400,envelopes,15/12/2016,427525,144.6,NET,Encore Envelopes Ltd,13782H
Gloucester City Council,23UE,Contact Centre,RB300,Postages,5400,envelopes,15/12/2016,427526,140.7,NET,Encore Envelopes Ltd,13782H
Gloucester City Council,23UE,Contact Centre,RB300,Stationery,5302,stationery,15/12/2016,427512,6.16,NET,Banner,17243G
Gloucester City Council,23UE,Contact Centre,RB300,Stationery,5302,stationery,15/12/2016,427528,26.24,NET,Banner,17243G
Gloucester City Council,23UE,Contact Centre,RB300,Stationery,5302,stationery,15/12/2016,427529,31.61,NET,Banner,17243G
Gloucester City Council,23UE,Crematorium,HC200,Maint Of Grounds - General,3030,Plants,15/12/2016,427323,856.94,NET,Greenmoon Plants,17260G
Gloucester City Council,23UE,Crematorium,HC200,Maint Of Grounds - General,3030,road form,15/12/2016,427547,1766.92,NET,Ermin Plant Hire & Services Ltd,14150V
Gloucester City Council,23UE,Crematorium,HC200,Operational Equipment <5000,5012,Air Freshener 12 months service,15/12/2016,427357,100,NET,Pyramid Hygiene Ltd,01897B
Gloucester City Council,23UE,Development Management,PT200,Advertising And Publicity,5702,adverts 8/12/16,15/12/2016,427515,175.3,NET,Local World Ltd,08556P
Gloucester City Council,23UE,Development Management,PT200,Fees For Services Received,5350,fees re Winneycroft Lane appeal,15/12/2016,427498,18724.6,NET,Parkwood Consultancy Services,17173C
Gloucester City Council,23UE,REDACTED,REDACTED,REDACTED,REDACTED,REDACTED,15/12/2016,REDACTED,160,NET,REDACTED,REDACTED
Gloucester City Council,23UE,Grants To Voluntary Sector,FG100,Grants,7100C,community grant 2016/17,15/12/2016,427587,600,NET,Abbeydale Senior Citizens Club,06565H
Gloucester City Council,23UE,Grants To Voluntary Sector,FG100,Grants,7100C,members allocation grant 2016/17,15/12/2016,427590,250,NET,Kingfisher Church,11764E
Gloucester City Council,23UE,Grants To Voluntary Sector,FG100,Grants To Advice Centres,7100,community grant 2016/17,15/12/2016,427587,0,NET,Abbeydale Senior Citizens Club,06565H
Gloucester City Council,23UE,Grants To Voluntary Sector,FG100,Members Allocation Fund,7100F,grant for rugby kit,15/12/2016,427588,2099,NET,Hq Harlequins Rfc,17292T
Gloucester City Council,23UE,Grants To Voluntary Sector,FG100,Members Allocation Fund,7100F,members allocation grant,15/12/2016,427589,1000,NET,Charlies,17293R
Gloucester City Council,23UE,Green Waste Vehicle,RY221,Contract Payments,0020,standard kerbsorter 6,15/12/2016,427215,137032.18,CAP,Romaquip Ltd,17203V
Gloucester City Council,23UE,Green Waste Vehicle,RY221,Contract Payments,0020,standard kerbsorter 7,15/12/2016,427214,137032.18,CAP,Romaquip Ltd,17203V
Gloucester City Council,23UE,Green Waste Vehicle,RY221,Contract Payments,0020,standard kerbsorter 8,15/12/2016,427213,137032.18,CAP,Romaquip Ltd,17203V
Gloucester City Council,23UE,Green Waste Vehicle,RY221,Contract Payments,0020,standard kerbsorter 9,15/12/2016,427212,137032.18,CAP,Romaquip Ltd,17203V
Gloucester City Council,23UE,Guildhall Bar And Caf�,LA210,Catering Provisions -Food,5110,Milk,15/12/2016,427192,9.52,NET,Total Produce Gloucester,12645E
Gloucester City Council,23UE,Guildhall Bar And Caf�,LA210,Catering Provisions -Food,5110,Milk,15/12/2016,427193,9.52,NET,Total Produce Gloucester,12645E
Gloucester City Council,23UE,Guildhall Bar And Caf�,LA210,Catering Provisions -Food,5110,Milk,15/12/2016,427194,7.14,NET,Total Produce Gloucester,12645E
Gloucester City Council,23UE,Guildhall Bar And Caf�,LA210,Catering Provisions -Food,5110,Milk,15/12/2016,427195,7.14,NET,Total Produce Gloucester,12645E
Gloucester City Council,23UE,Guildhall Bar And Caf�,LA210,Catering Provisions -Food,5110,Milk,15/12/2016,427196,4.76,NET,Total Produce Gloucester,12645E
Gloucester City Council,23UE,Guildhall Bar And Caf�,LA210,Catering Provisions -Food,5110,Milk,15/12/2016,427197,4.76,NET,Total Produce Gloucester,12645E
Gloucester City Council,23UE,Guildhall Bar And Caf�,LA210,Catering Provisions -Food,5110,Milk,15/12/2016,427198,4.76,NET,Total Produce Gloucester,12645E
Gloucester City Council,23UE,Guildhall Bar And Caf�,LA210,Catering Provisions -Food,5110,Milk,15/12/2016,427199,4.76,NET,Total Produce Gloucester,12645E
Gloucester City Council,23UE,Guildhall Cinema,LA202,Hire Of Equipment,5020,film transport fees,15/12/2016,427505,219.59,NET,Nft Logistics Ltd,13505N
Gloucester City Council,23UE,REDACTED,REDACTED,REDACTED,REDACTED,REDACTED,15/12/2016,REDACTED,100,NET,REDACTED,REDACTED
Gloucester City Council,23UE,REDACTED,REDACTED,REDACTED,REDACTED,REDACTED,15/12/2016,REDACTED,80,NET,REDACTED,REDACTED
Gloucester City Council,23UE,Homelessness,CH120,Removal And Storage Fees,5513,STORAGE FEES,15/12/2016,427579,373.13,NET,Advanced Removals & Storage Ltd,57142R
Gloucester City Council,23UE,Homelessness,CH120,Removal And Storage Fees,5513,STORAGE FEES,15/12/2016,427580,123.75,NET,Advanced Removals & Storage Ltd,57142R
Gloucester City Council,23UE,Innsworth Lane Sports Pitches,LY079,Contract Payments,0020,apply fertiliser,15/12/2016,427513,170,CAP,Gdb Groundcare,15552J
Gloucester City Council,23UE,Investment Property,RB500,Gas Fittings Serv/Repair,3052,NOV16 mechanical works,15/12/2016,427506,5342.36,NET,Rf Gardiner Limited,12299B
Gloucester City Council,23UE,Investment Property,RB500,General Repair/Maint Buildings,3000,NOV15 building & electrical works,15/12/2016,427530,20754.01,NET,Rf Gardiner Limited,12299B
Gloucester City Council,23UE,Planning Policy & Heritage,PT300,Fees For Services Received,5350,Smyths Toys fees,15/12/2016,427504,500,NET,Dpds Ltd,05404V
Gloucester City Council,23UE,Pollution Control,HE300,Fees For Services Received,5350,NO2 tubes & analysis,15/12/2016,427514,104.25,NET,Gradko International Ltd,11063B
Gloucester City Council,23UE,Pollution Control,HE300,Fees For Services Received,5350,sim card for trial cameras,15/12/2016,427302,100,NET,Scott Total Security Ltd,17278L
Gloucester City Council,23UE,Pollution Control,HE300,Fees For Services Received,5350,supply & fit trial camera,15/12/2016,427303,425,NET,Scott Total Security Ltd,17278L
Gloucester City Council,23UE,Retail Market - Landlord,HM300,Window Cleaning,3610,SEP16 window cleaning,15/12/2016,427517,140,NET,Cornwall Cleaning Services,14050A
Gloucester City Council,23UE,Safer Stronger Communities,FP841,Other Minor Supplies Services,5590,awards dinner fees,15/12/2016,427510,416.67,NET,Gloucester Rugby Football Club,49396D
Gloucester City Council,23UE,Safer Stronger Communities,FP841,Other Minor Supplies Services,5590,Conservatory Room Hire,15/12/2016,427034,180.65,NET,Aspire Sports & Cultural Trust,08135V
Gloucester City Council,23UE,Shopmobility,PE200,Maintenance Of Equipment,5030,SHOPMOBILITY SCOOTER REPAIRS,15/12/2016,427322,196,NET,Disabled Care & Mobility,12675V
Gloucester City Council,23UE,The Arbor,HC501,Catering Provisions -Food,5110,food,15/12/2016,427537,23.99,NET,Total Produce Gloucester,12645E
Gloucester City Council,23UE,The Arbor,HC501,Catering Provisions -Food,5110,food,15/12/2016,427538,44.72,NET,Total Produce Gloucester,12645E
Gloucester City Council,23UE,The Arbor,HC501,Catering Provisions -Food,5110,food,15/12/2016,427582,3.82,NET,Total Produce Gloucester,12645E
Gloucester City Council,23UE,The Arbor,HC501,Catering Provisions -Food,5110,food,15/12/2016,427583,18.94,NET,Total Produce Gloucester,12645E
Gloucester City Council,23UE,The Arbor,HC501,Catering Provisions -Food,5110,food,15/12/2016,427584,31.45,NET,Total Produce Gloucester,12645E
Gloucester City Council,23UE,REDACTED,REDACTED,REDACTED,REDACTED,REDACTED,15/12/2016,REDACTED,33,NET,REDACTED,REDACTED
Gloucester City Council,23UE,REDACTED,REDACTED,REDACTED,REDACTED,REDACTED,15/12/2016,REDACTED,52.8,NET,REDACTED,REDACTED
Gloucester City Council,23UE,REDACTED,REDACTED,REDACTED,REDACTED,REDACTED,15/12/2016,REDACTED,52.8,NET,REDACTED,REDACTED
Gloucester City Council,23UE,Aspire Admin Charges,LC105,Security Services Fees,5351,JAN17 cash services,16/12/2016,427574,187.72,NET,G4s Cash Solutions (Uk) Ltd,04290V
Gloucester City Council,23UE,Barton & Tredworth Pos S106,LY159,Contract Payments,0020,St James Park bins,16/12/2016,427516,770,CAP,Greenfields Garden Services Ltd,48130G
Gloucester City Council,23UE,REDACTED,REDACTED,REDACTED,REDACTED,REDACTED,16/12/2016,REDACTED,530,NET,REDACTED,REDACTED
Gloucester City Council,23UE,Cemeteries,HC300,Printing,5300,printing for Crem,16/12/2016,427550,596.25,NET,Gloucestershire County Council,18650D
Gloucester City Council,23UE,Cems/Crems Admin,HC100,Security Services Fees,5351,amendments to contract 3338600,16/12/2016,427573,21.28,NET,G4s Cash Solutions (Uk) Ltd,04290V
Gloucester City Council,23UE,Cems/Crems Admin,HC100,Security Services Fees,5351,JAN17 cash services,16/12/2016,427574,107,NET,G4s Cash Solutions (Uk) Ltd,04290V
Gloucester City Council,23UE,Cems/Crems Admin,HC100,Security Services Fees,5351,NOV16 cash processing fees,16/12/2016,427572,14.11,NET,G4s Cash Solutions (Uk) Ltd,04290V
Gloucester City Council,23UE,City Museum And Art Gallery,LM200,Security Services Fees,5351,JAN17 cash services,16/12/2016,427574,93.86,NET,G4s Cash Solutions (Uk) Ltd,04290V
Gloucester City Council,23UE,Client Revs & Bens Contract,RT240,Bailiffs Fees,5368,vat only invoice,16/12/2016,427556,0,NET,Phoenix Commercial Collections Ltd,13435J
Gloucester City Council,23UE,Client Revs & Bens Contract,RT240,Bailiffs Fees,5368,vat only invoice,16/12/2016,427558,0,NET,Bristow & Sutor,05450M
Gloucester City Council,23UE,Client Revs & Bens Contract,RT240,Bailiffs Fees,5368,vat only invoice,16/12/2016,427559,0,NET,Bristow & Sutor,05450M
Gloucester City Council,23UE,Council Streetcare Team,HI101,Safety Equipment,5013,FIRST AID KIT,16/12/2016,427535,47.33,NET,St John Ambulance Supplies,57856R
Gloucester City Council,23UE,Crematorium,HC200,"Seeds, Trees, Plants, Shrubs",3028,Top Rose,16/12/2016,427321,35.38,NET,Norton Plantaria,53679C
Gloucester City Council,23UE,Development Management,PT200,Advertising And Publicity,5702,adverts 1/12/16,16/12/2016,427253,292.16,NET,Local World Ltd,08556P
Gloucester City Council,23UE,Docks Complex - Services,RB100,Security Services Fees,5351,JAN17 cash services,16/12/2016,427574,280.41,NET,G4s Cash Solutions (Uk) Ltd,04290V
Gloucester City Council,23UE,Docks Complex - Services,RB100,Security Services Fees,5351,NOV16 cash processing fees,16/12/2016,427572,3.53,NET,G4s Cash Solutions (Uk) Ltd,04290V
Gloucester City Council,23UE,Folk Museum,LM210,Security Services Fees,5351,JAN17 cash services,16/12/2016,427574,93.86,NET,G4s Cash Solutions (Uk) Ltd,04290V
Gloucester City Council,23UE,Gloucester Guildhall,LA100,Security Services Fees,5351,JAN17 cash services,16/12/2016,427574,93.85,NET,G4s Cash Solutions (Uk) Ltd,04290V
Gloucester City Council,23UE,Gloucester Partnership,FP106,Training Course Fees,5367,SFJ Level 3 awards,16/12/2016,427534,1600,NET,"Police & Crime Commissioner, Gloucestershire",49521B
Gloucester City Council,23UE,Green Waste Vehicle,RY221,Contract Payments,0020,standard Kerbsorter 10,16/12/2016,427546,137032.18,CAP,Romaquip Ltd,17203V
Gloucester City Council,23UE,Green Waste Vehicle,RY221,Contract Payments,0020,standard Kerbsorter 11,16/12/2016,427545,137032.18,CAP,Romaquip Ltd,17203V
Gloucester City Council,23UE,Green Waste Vehicle,RY221,Contract Payments,0020,standard Kerbsorter 12,16/12/2016,427544,137032.18,CAP,Romaquip Ltd,17203V
Gloucester City Council,23UE,Green Waste Vehicle,RY221,Contract Payments,0020,standard Kerbsorter 13,16/12/2016,427543,137032.18,CAP,Romaquip Ltd,17203V
Gloucester City Council,23UE,Green Waste Vehicle,RY221,Contract Payments,0020,standard kerbsort vehicle 14,16/12/2016,427507,137032.18,CAP,Romaquip Ltd,17203V
Gloucester City Council,23UE,Guildhall Bar And Caf�,LA210,Catering Provisions -Liquor,5111,Drinks,16/12/2016,427202,766.98,NET,Cellar Supplies Cheltenham Ltd,01563L
Gloucester City Council,23UE,Guildhall Bar And Caf�,LA210,Catering Provisions -Liquor,5111,Wine,16/12/2016,427201,49.4,NET,Cellar Supplies Cheltenham Ltd,01563L
Gloucester City Council,23UE,Guildhall Bar And Caf�,LA210,Operational Equipment <5000,5012,Various Items,16/12/2016,427204,10,NET,Nisbets,55372P
Gloucester City Council,23UE,REDACTED,REDACTED,REDACTED,REDACTED,REDACTED,16/12/2016,REDACTED,150,NET,REDACTED,REDACTED
Gloucester City Council,23UE,Hackney Carriages,HL100,Reimbursements,5591,refund HCV033 re incorrect charge,16/12/2016,427627,189,NET,Chief Vehicle Rentals,14169X
Gloucester City Council,23UE,Human Resources,EH100,Fees For Services Received,5350,November 2016 payroll charges,16/12/2016,427575,2769.11,NET,Gloucestershire County Council,18650D
Gloucester City Council,23UE,Ranger Centre/Netheridge Wks,RY167,Contract Payments,0020,Cogged Wedge Belt,16/12/2016,427340,81,CAP,A C Belting Ltd,00250X
Gloucester City Council,23UE,The Arbor,HC501,Catering Provisions -Food,5110,food,16/12/2016,427536,148.3,NET,Bidvest Foodservice (3663),55585U
Gloucester City Council,23UE,The Arbor,HC501,Catering Provisions -Food,5110,food,16/12/2016,427549,107.58,NET,Janes Pantry,24500W
Gloucester City Council,23UE,The Arbor,HC501,Catering Provisions -Food,5110,food,16/12/2016,427576,267.77,NET,Bidvest Foodservice (3663),55585U
Gloucester City Council,23UE,Tourism Marketing,LT100,Security Services Fees,5351,JAN17 cash services,16/12/2016,427574,93.86,NET,G4s Cash Solutions (Uk) Ltd,04290V
Gloucester City Council,23UE,Barbican Car Park,RB543,General Repair/Maint Buildings,3000,Barbican car park barrier repair,19/12/2016,427651,1000,NET,Mpl Wrought Iron Llp,03907P
Gloucester City Council,23UE,Blackfriars,LA609,Contract Cleaning,3620,CLEANING SEPT 16,19/12/2016,424274,325,NET,Into Cleaning,14609P
Gloucester City Council,23UE,Blackfriars,LA609,Contract Cleaning,3620,Cover Cleaning Nov 16,19/12/2016,427093,195,NET,Into Cleaning,14609P
Gloucester City Council,23UE,Blackfriars,LA609,Contract Cleaning,3620,Cover Cleaning Oct 16,19/12/2016,425599,455,NET,Into Cleaning,14609P
Gloucester City Council,23UE,Blackfriars,LA609,Contract Cleaning,3620,Credited,19/12/2016,427658,150,NET,Into Cleaning,14609P
Gloucester City Council,23UE,Car Parks,GY002,Contract Payments,0020,car park signage,19/12/2016,427210,4883.5,CAP,Hanman Split Ltd,56889J
Gloucester City Council,23UE,Car Parks,GY002,Contract Payments,0020,PROTECTION BAR INSTALLATION,19/12/2016,426777,3637,CAP,Wps United Kingdom Ltd,16424K
Gloucester City Council,23UE,Car Parks,GY002,Contract Payments,0020,UPLIFT EASTGATE & KINGSWALK P&D,19/12/2016,426776,1085,CAP,Wps United Kingdom Ltd,16424K
Gloucester City Council,23UE,City Museum And Art Gallery,LM200,Basic Pay - Temporary Staff,2751,City Museum service report,19/12/2016,427551,4764,NET,Gloucestershire County Council,18650D
Gloucester City Council,23UE,Civica Admin Charges,RT105,Fees For Services Received,5350,CHD subscription advance,19/12/2016,427299,4,NET,Companies House,58954E
Gloucester City Council,23UE,Civica Admin Charges,RT105,Fees For Services Received,5350,CHD subscription advance,19/12/2016,427300,4,NET,Companies House,58954E
Gloucester City Council,23UE,Civica Admin Charges,RT105,Fees For Services Received,5350,CHD subscription advance,19/12/2016,427301,4,NET,Companies House,58954E
Gloucester City Council,23UE,Civica Admin Charges,RT105,Postages,5400,Licence Fee,19/12/2016,427360,787,NET,Royal Mail S.Wales & South West,35830S
Gloucester City Council,23UE,Client Revs & Bens Contract,RT240,Fees For Services Received,5350,defaulter arrest warrant,19/12/2016,427630,60,NET,Assevarate Ltd,11749A
Gloucester City Council,23UE,Coll Fund Revenue Account,ZC100,County Council Precept,7460,precept payment due 18/01/17,19/12/2016,427666,4168751.7,NET,Gloucestershire County Council,18650D
Gloucester City Council,23UE,Coll Fund Revenue Account,ZC100,Nndr Central Share,7474,brr pooling payment due 19/01/17,19/12/2016,427669,424982,NET,Gloucestershire County Council,18650D
Gloucester City Council,23UE,Coll Fund Revenue Account,ZC100,Nndr Tariff,7473,brr pooling payment due 19/01/17,19/12/2016,427668,1331309,NET,Stroud District Council,74737T
Gloucester City Council,23UE,Coll Fund Revenue Account,ZC100,Police Precept,7461,precept payment due 18/01/17,19/12/2016,427667,773478.2,NET,"Police & Crime Commissioner, Gloucestershire",49521B
Gloucester City Council,23UE,Contact Centre,RB300,Stationery,5302,stationery,19/12/2016,427511,81.24,NET,Banner,17243G
Gloucester City Council,23UE,Contact Centre,RB300,Stationery,5302,Various Items,19/12/2016,427242,13.16,NET,Stanford Marsh Ltd,51139M
Gloucester City Council,23UE,Crematorium,HC200,Memorial Plaques,5053,Plaques,19/12/2016,427247,300,NET,Arkell & Hurcombe,59812T
Gloucester City Council,23UE,Development Management,PT200,Basic Pay - Temporary Staff,2751,temporary staff,19/12/2016,427310,1722.5,NET,The Oyster Partnership Limited,14900T
Gloucester City Council,23UE,Employers Pension Contribs,ZR355,Pension Contribs Incl Backf,2901,pension deficit payment for January 2017,19/12/2016,427665,238916.67,NET,Gloucestershire County Council,10614L
Gloucester City Council,23UE,Financial Services,RT200,Fees For Services Received,5350,VAT only invoice,19/12/2016,427211,0,NET,Wansbroughs Solicitors,55500F
Gloucester City Council,23UE,Flooding And Drainage,HE306,Maint Of Grounds - General,3030,Coopers Elm tree fellng,19/12/2016,427520,850,NET,Rdb Safety Boat Ltd,13507J
Gloucester City Council,23UE,Flooding And Drainage,HE306,Maint Of Grounds - General,3030,Green Lane vaegetation works,19/12/2016,427518,270,NET,Rdb Safety Boat Ltd,13507J
Gloucester City Council,23UE,Flooding And Drainage,HE306,Maint Of Grounds - General,3030,Wheatway/Almond Close works,19/12/2016,427519,495,NET,Rdb Safety Boat Ltd,13507J
Gloucester City Council,23UE,General Drainage Works,PY241,Contract Payments,0020,Sudbrook flood protection 2nd fee,19/12/2016,427497,1000,CAP,Jba Consulting,15841Y
Gloucester City Council,23UE,Gloucester Guildhall,LA100,Maintenance Of Equipment,5030,lamps & lighting gel,19/12/2016,427313,350,NET,Uss Unique Sound Systems Ltd,59571S
Gloucester City Council,23UE,Gloucester Guildhall,LA100,Maintenance Of Equipment,5030,smoke fluid,19/12/2016,427066,98,NET,Uss Unique Sound Systems Ltd,59571S
Gloucester City Council,23UE,Grants To Voluntary Sector,FG100,Members Allocation Fund,7100F,supply crazy scrambler,19/12/2016,427650,569,NET,Sunshine Playgrounds Ltd,14958J
Gloucester City Council,23UE,Guildhall Bar And Caf�,LA210,Fees For Services Received,5350,temporary staff,19/12/2016,427540,129.15,NET,Re People,17253D
Gloucester City Council,23UE,Guildhall Cinema,LA202,Maintenance Of Equipment,5030,lighting desk hire,19/12/2016,427067,140.75,NET,Uss Unique Sound Systems Ltd,59571S
Gloucester City Council,23UE,Guildhall Events,LA200,Fees For Services Received,5350,equipment hire DEC16,19/12/2016,427288,64.88,NET,Peak Hire Limited,07936J
Gloucester City Council,23UE,Kings Quarter,RY146,Contract Payments,0020,Bus Station water main diversion,19/12/2016,427659,1449.85,CAP,Severn Trent Water Ltd,02417P
Gloucester City Council,23UE,Nms Contract,HI102,Additional Non-Tender Items,6973,Black Wheeled Bins Aug 16,19/12/2016,423460,3090.53,NET,Enterprise (Aol) Ltd,06695G
Gloucester City Council,23UE,Nms Contract,HI102,Additional Non-Tender Items,6973,large food caddies,19/12/2016,423459,2993.76,NET,Enterprise (Aol) Ltd,06695G
Gloucester City Council,23UE,Off Street Car Parks,PP110,General Repair/Maint Buildings,3000,Callout Charge 11/11/2016,19/12/2016,426502,210,NET,Wps United Kingdom Ltd,16424K
Gloucester City Council,23UE,Off Street Car Parks,PP110,Lease Lines,5411,ticket & receipt rolls,19/12/2016,426708,585,NET,Wps United Kingdom Ltd,16424K
Gloucester City Council,23UE,Planning Policy & Heritage,PT300,Basic Pay - Temporary Staff,2751,temporary staff,19/12/2016,427311,2387,NET,The Oyster Partnership Limited,14900T
Gloucester City Council,23UE,Play Area Refurbishment,LY071,Contract Payments,0020,Firetruck for St James Park,19/12/2016,427631,1890,CAP,Sunshine Playgrounds Ltd,14958J
Gloucester City Council,23UE,St James Park Active Together,LY167,Contract Payments,0020,Gym equipment for St James Park,19/12/2016,427649,13486.4,CAP,Sunshine Playgrounds Ltd,14958J
Gloucester City Council,23UE,The Fleece,RB530,General Repair/Maint Buildings,3000,Fleece Hotel,19/12/2016,427216,687.5,NET,Mca Consulting Engineers Ltd,17289F
Gloucester City Council,23UE,Tic Theatre Ticket Sales,LT107,Materials For Sale,5080,CHRISTMAS CONCERT 30/11/16 SALES,19/12/2016,427654,235,NET,Muscular Dystrophy Campaign,11485M
Gloucester City Council,23UE,Tic Theatre Ticket Sales,LT107,Materials For Sale,5080,SALES RE OLIVER TWIST NOV16,19/12/2016,427653,403,NET,Kings Theatre,54213X
Gloucester City Council,23UE,REDACTED,REDACTED,REDACTED,REDACTED,REDACTED,19/12/2016,REDACTED,414,NET,REDACTED,REDACTED
Gloucester City Council,23UE,REDACTED,REDACTED,REDACTED,REDACTED,REDACTED,19/12/2016,REDACTED,128,NET,REDACTED,REDACTED
Gloucester City Council,23UE,REDACTED,REDACTED,REDACTED,REDACTED,REDACTED,19/12/2016,REDACTED,-3.2,NET,REDACTED,REDACTED
Gloucester City Council,23UE,Tic Theatre Ticket Sales,LT107,Sale Of Goods And Services,9230,CHRISTMAS CONCERT 30/11/16 SALES,19/12/2016,427654,-9.79,NET,Muscular Dystrophy Campaign,11485M
Gloucester City Council,23UE,Tic Theatre Ticket Sales,LT107,Sale Of Goods And Services,9230,SALES RE OLIVER TWIST NOV16,19/12/2016,427653,-33.58,NET,Kings Theatre,54213X
Gloucester City Council,23UE,REDACTED,REDACTED,REDACTED,REDACTED,REDACTED,19/12/2016,REDACTED,-34.5,NET,REDACTED,REDACTED
Gloucester City Council,23UE,REDACTED,REDACTED,REDACTED,REDACTED,REDACTED,19/12/2016,REDACTED,-5.33,NET,REDACTED,REDACTED
Gloucester City Council,23UE,Allotments,HI104,Water Supply,3400,Consumption Savings November 16,20/12/2016,427071,139.67,NET,Advanced Demand Side Management Ltd,16229K
Gloucester City Council,23UE,Asset Management,RS300,Basic Pay - Temporary Staff,2751,Consultancy Services,20/12/2016,427252,7550,NET,Ardley Associates,09369F
Gloucester City Council,23UE,Bus Station,RB400,Water Supply,3400,Consumption Savings November 16,20/12/2016,427071,40.33,NET,Advanced Demand Side Management Ltd,16229K
Gloucester City Council,23UE,Car Parks,GY002,Contract Payments,0020,RETROFIT IP PINHOLE CAMERAS,20/12/2016,426778,4300,CAP,Wps United Kingdom Ltd,16424K
Gloucester City Council,23UE,Civic Admin And Hospitality,RC210,Hire Of Taxis,4053,civic chauffeuring NOV16,20/12/2016,427702,957.5,NET,Chris Hall Chauffeuring,11660U
Gloucester City Council,23UE,Client Revs & Bens Contract,RT240,Bailiffs Fees,5368,VAT only invoice,20/12/2016,427628,0,NET,Bristow & Sutor,05450M
Gloucester City Council,23UE,Council Streetcare Team,HI101,Water Supply,3400,Consumption Savings November 16,20/12/2016,427071,15.16,NET,Advanced Demand Side Management Ltd,16229K
Gloucester City Council,23UE,Council Streetcare Team,HI101,Water Supply,3400,Tariff Savings November 2016,20/12/2016,427070,48.11,NET,Advanced Demand Side Management Ltd,16229K
Gloucester City Council,23UE,Countryside Unit,LP201,Water Supply,3400,Consumption Savings November 16,20/12/2016,427071,12.01,NET,Advanced Demand Side Management Ltd,16229K
Gloucester City Council,23UE,Crematorium,HC200,Water Supply,3400,Consumption Savings November 16,20/12/2016,427071,3.41,NET,Advanced Demand Side Management Ltd,16229K
Gloucester City Council,23UE,Docks Complex - Services,RB100,Water Supply,3400,Consumption Savings November 16,20/12/2016,427071,22.68,NET,Advanced Demand Side Management Ltd,16229K
Gloucester City Council,23UE,Guildhall Bar And Caf�,LA210,Catering Provisions -Liquor,5111,Gloucester Gold,20/12/2016,427200,115.2,NET,Gloucester Brewery,13373F
Gloucester City Council,23UE,REDACTED,REDACTED,REDACTED,REDACTED,REDACTED,20/12/2016,REDACTED,90.25,NET,REDACTED,REDACTED
Gloucester City Council,23UE,REDACTED,REDACTED,REDACTED,REDACTED,REDACTED,20/12/2016,REDACTED,100,NET,REDACTED,REDACTED
Gloucester City Council,23UE,REDACTED,REDACTED,REDACTED,REDACTED,REDACTED,20/12/2016,REDACTED,0,NET,REDACTED,REDACTED
Gloucester City Council,23UE,REDACTED,REDACTED,REDACTED,REDACTED,REDACTED,20/12/2016,REDACTED,1485,NET,REDACTED,REDACTED
Gloucester City Council,23UE,Homelessness,CH120,Board And Lodging,5515,VARIOUS TENANTS DEC16,20/12/2016,427664,128.57,NET,Dorchester Guest House,12298D
Gloucester City Council,23UE,REDACTED,REDACTED,REDACTED,REDACTED,REDACTED,20/12/2016,REDACTED,475,NET,REDACTED,REDACTED
Gloucester City Council,23UE,Investment Property,RB500,Water Supply,3400,Consumption Savings November 16,20/12/2016,427071,47.72,NET,Advanced Demand Side Management Ltd,16229K
Gloucester City Council,23UE,Investment Property,RB500,Water Supply,3400,Tariff Savings November 2016,20/12/2016,427070,13.57,NET,Advanced Demand Side Management Ltd,16229K
Gloucester City Council,23UE,Off Street Car Parks,PP110,Fees For Services Received,5350,Oct-Dec16 parking services equipment,20/12/2016,426695,433.84,NET,Parkeon Ltd,03238G
Gloucester City Council,23UE,Off Street Car Parks,PP110,General Repair/Maint Buildings,3000,Barbican Car park works,20/12/2016,427539,186.25,NET,Parkeon Ltd,03238G
Gloucester City Council,23UE,Off Street Car Parks,PP110,Water Supply,3400,Consumption Savings November 16,20/12/2016,427071,1.16,NET,Advanced Demand Side Management Ltd,16229K
Gloucester City Council,23UE,Off Street Car Parks,PP110,Water Supply,3400,Tariff Savings November 2016,20/12/2016,427070,13.57,NET,Advanced Demand Side Management Ltd,16229K
Gloucester City Council,23UE,Public Conveniences (Client),HI400,Water Supply,3400,Tariff Savings November 2016,20/12/2016,427070,81.91,NET,Advanced Demand Side Management Ltd,16229K
Gloucester City Council,23UE,Registration Of Electors,RS400,Printing,5300,CANVASSER HEF FORMS,20/12/2016,425642,1272,NET,Alpha Response Print & Mail Ltd,03029U
Gloucester City Council,23UE,Registration Of Electors,RS400,Printing,5300,LONGLEVENS BY ELECTION POLL CARDS,20/12/2016,425646,438,NET,Alpha Response Print & Mail Ltd,03029U
Gloucester City Council,23UE,Registration Of Electors,RS400,Printing,5300,LONGLEVENS BY ELECTION PV PACKS,20/12/2016,425645,948,NET,Alpha Response Print & Mail Ltd,03029U
Gloucester City Council,23UE,Registration Of Electors,RS400,Printing,5300,LONGLEVENS ELECTION BALLOT PAPERS,20/12/2016,425644,686,NET,Alpha Response Print & Mail Ltd,03029U
Gloucester City Council,23UE,Registration Of Electors,RS400,Printing,5300,November IER Mailings,20/12/2016,426991,671.2,NET,Alpha Response Print & Mail Ltd,03029U
Gloucester City Council,23UE,Registration Of Electors,RS400,Printing,5300,Oct IER Mailings,20/12/2016,425647,889.85,NET,Alpha Response Print & Mail Ltd,03029U
Gloucester City Council,23UE,Registration Of Electors,RS400,Printing,5300,Outer/Response Envelopes,20/12/2016,425643,325,NET,Alpha Response Print & Mail Ltd,03029U
Gloucester City Council,23UE,Utilities,PT502,Electricity Supply,3110,NOV16 gas & electric,20/12/2016,427569,32822.7,NET,West Mercia Energy,11669Z
Gloucester City Council,23UE,Utilities,PT502,Gas Supply,3100,NOV16 gas & electric,20/12/2016,427569,14508.92,NET,West Mercia Energy,11669Z
Gloucester City Council,23UE,27-29 Commercial Road,RB542,Maint Of Grounds - General,3030,23-29 COMMERCIAL ROAD EXTERNAL CLEANING,21/12/2016,427781,240,NET,Gloucester Quays Management Ltd,13497K
Gloucester City Council,23UE,Business Transformation & Tech,RT700,Computer Software <5000,5425,installation & upgrade work,21/12/2016,423765,688.49,NET,Esri (Uk) Ltd,57836X
Gloucester City Council,23UE,City Centre Manager,PT310,Other Minor Supplies Services,5590,ENGRAVING,21/12/2016,427779,41.67,NET,Chrome Awards,17202X
Gloucester City Council,23UE,City Museum Catering,LM202,Catering Provisions -Food,5110,FOOD,21/12/2016,427744,7.14,NET,Total Produce Gloucester,12645E
Gloucester City Council,23UE,City Museum Catering,LM202,Catering Provisions -Food,5110,FOOD,21/12/2016,427745,4.76,NET,Total Produce Gloucester,12645E
Gloucester City Council,23UE,Council Streetcare Team,HI101,Maint Of Grounds - General,3030,Fly tip removal,21/12/2016,426796,1234.3,NET,Enterprise (Aol) Ltd,06695G
Gloucester City Council,23UE,Countryside Unit,LP201,General Repair/Maint Buildings,3000,SECURITY CHAIN,21/12/2016,427735,15.98,NET,Gloucester Locksmiths,18160C
Gloucester City Council,23UE,Crematorium,HC200,Equipment For Sale,5050,MEMORIAL BENCH,21/12/2016,427783,1735,NET,F J Cambridge & Co Ltd,48841N
Gloucester City Council,23UE,Crematorium,HC200,Memorial Plaques,5053,MEMORIALS,21/12/2016,427732,462,NET,Arkell & Hurcombe,59812T
Gloucester City Council,23UE,Gloucester Guildhall,LA100,Fees For Services Received,5350,GUILDHALL THERMAL TICKETS,21/12/2016,427741,1331,NET,Hague Computer Supplies Ltd,59713W
Gloucester City Council,23UE,Gloucester Guildhall,LA100,Fees For Services Received,5350,WORKWEAR SAMPLES,21/12/2016,427738,213.18,NET,Workware Express Ltd,17189L
Gloucester City Council,23UE,REDACTED,REDACTED,REDACTED,REDACTED,REDACTED,21/12/2016,REDACTED,430.88,NET,REDACTED,REDACTED
Gloucester City Council,23UE,REDACTED,REDACTED,REDACTED,REDACTED,REDACTED,21/12/2016,REDACTED,775.2,NET,REDACTED,REDACTED
Gloucester City Council,23UE,REDACTED,REDACTED,REDACTED,REDACTED,REDACTED,21/12/2016,REDACTED,97.92,NET,REDACTED,REDACTED
Gloucester City Council,23UE,REDACTED,REDACTED,REDACTED,REDACTED,REDACTED,21/12/2016,REDACTED,100,NET,REDACTED,REDACTED
Gloucester City Council,23UE,REDACTED,REDACTED,REDACTED,REDACTED,REDACTED,21/12/2016,REDACTED,125,NET,REDACTED,REDACTED
Gloucester City Council,23UE,Homelessness,CH120,Removal And Storage Fees,5513,STORAGE FEES,21/12/2016,427746,123.43,NET,Advanced Removals & Storage Ltd,57142R
Gloucester City Council,23UE,Homelessness,CH120,Removal And Storage Fees,5513,STORAGE FEES,21/12/2016,427747,41.14,NET,Advanced Removals & Storage Ltd,57142R
Gloucester City Council,23UE,Homelessness,CH120,Removal And Storage Fees,5513,STORAGE FEES,21/12/2016,427748,231.43,NET,Advanced Removals & Storage Ltd,57142R
Gloucester City Council,23UE,Homelessness,CH120,Removal And Storage Fees,5513,STORAGE FEES,21/12/2016,427749,39.11,NET,Advanced Removals & Storage Ltd,57142R
Gloucester City Council,23UE,Homelessness,CH120,Removal And Storage Fees,5513,STORAGE FEES,21/12/2016,427750,78.21,NET,Advanced Removals & Storage Ltd,57142R
Gloucester City Council,23UE,Homelessness,CH120,Removal And Storage Fees,5513,STORAGE FEES,21/12/2016,427751,77.14,NET,Advanced Removals & Storage Ltd,57142R
Gloucester City Council,23UE,Homelessness,CH120,Removal And Storage Fees,5513,STORAGE FEES,21/12/2016,427757,77.14,NET,Advanced Removals & Storage Ltd,57142R
Gloucester City Council,23UE,Homelessness,CH120,Removal And Storage Fees,5513,STORAGE FEES,21/12/2016,427758,77.14,NET,Advanced Removals & Storage Ltd,57142R
Gloucester City Council,23UE,Homelessness,CH120,Removal And Storage Fees,5513,STORAGE FEES,21/12/2016,427759,78.21,NET,Advanced Removals & Storage Ltd,57142R
Gloucester City Council,23UE,Homelessness,CH120,Removal And Storage Fees,5513,STORAGE FEES,21/12/2016,427760,154.29,NET,Advanced Removals & Storage Ltd,57142R
Gloucester City Council,23UE,Homelessness,CH120,Removal And Storage Fees,5513,STORAGE FEES,21/12/2016,427761,156.43,NET,Advanced Removals & Storage Ltd,57142R
Gloucester City Council,23UE,Homelessness,CH120,Removal And Storage Fees,5513,STORAGE FEES,21/12/2016,427765,39.11,NET,Advanced Removals & Storage Ltd,57142R
Gloucester City Council,23UE,Homelessness,CH120,Removal And Storage Fees,5513,STORAGE FEES,21/12/2016,427766,78.21,NET,Advanced Removals & Storage Ltd,57142R
Gloucester City Council,23UE,Homelessness,CH120,Removal And Storage Fees,5513,STORAGE FEES,21/12/2016,427767,39.11,NET,Advanced Removals & Storage Ltd,57142R
Gloucester City Council,23UE,Homelessness,CH120,Removal And Storage Fees,5513,STORAGE FEES,21/12/2016,427768,38.57,NET,Advanced Removals & Storage Ltd,57142R
Gloucester City Council,23UE,Homelessness,CH120,Removal And Storage Fees,5513,STORAGE FEES,21/12/2016,427769,90,NET,Advanced Removals & Storage Ltd,57142R
Gloucester City Council,23UE,Nms Contract,HI102,Additional Non-Tender Items,6973,Communal Bins,21/12/2016,426830,1745.81,NET,Enterprise (Aol) Ltd,06695G
Gloucester City Council,23UE,Nms Contract,HI102,Additional Non-Tender Items,6973,Recycling boxes,21/12/2016,422102,5259.32,NET,Enterprise (Aol) Ltd,06695G
Gloucester City Council,23UE,Parks Contract Management,LP100,Maint Of Grounds - General,3030,Zip Wire & Swings,21/12/2016,426831,371.14,NET,Enterprise (Aol) Ltd,06695G
Gloucester City Council,23UE,Registration Of Electors,RS400,Printing,5300,POLLING STATION 3/11/16,21/12/2016,427739,180.4,NET,The Parish Of Holy Trinity,16499B
Gloucester City Council,23UE,Tourism Marketing,LT100,Window Cleaning,3610,3 MONTHLY WINDOW CLEANING,21/12/2016,427785,42.93,NET,Interserve Fs (Uk) Limited,00442K
Gloucester City Council,23UE,Blackfriars Weddings,LA220,Catering Provisions -Liquor,5111,drinks for resale,22/12/2016,427873,898.63,NET,Cellar Supplies Cheltenham Ltd,01563L
Gloucester City Council,23UE,REDACTED,REDACTED,REDACTED,REDACTED,REDACTED,22/12/2016,REDACTED,4777.76,NET,REDACTED,REDACTED
Gloucester City Council,23UE,City Museum Catering,LM202,Catering Provisions -Food,5110,Milk,22/12/2016,427294,4.76,NET,Total Produce Gloucester,12645E
Gloucester City Council,23UE,Council Streetcare Team,HI101,Maint Of Grounds - General,3030,FORKLIFT HIRE,22/12/2016,427869,280,NET,Ken Pink Plant Hire Ltd,56884V
Gloucester City Council,23UE,Council Streetcare Team,HI101,Window Cleaning,3610,nov16 WINDOW CLEANING,22/12/2016,427737,130,NET,Poles Apart Window Cleaning,11636R
Gloucester City Council,23UE,Countryside Unit,LP201,Publications,5060,Annual Subscription,22/12/2016,427316,45,NET,Nhbs Ltd,57405F
Gloucester City Council,23UE,Crematorium,HC200,Repair/Maint Of Fixed Plant,3006,Collection of one pallet,22/12/2016,427898,1784.5,NET,Facultatieve Technologies Ltd,51210H
Gloucester City Council,23UE,Crematorium,HC200,Repair/Maint Of Fixed Plant,3006,Credited,22/12/2016,427903,1412.3,NET,Facultatieve Technologies Ltd,51210H
Gloucester City Council,23UE,Crematorium,HC200,Repair/Maint Of Fixed Plant,3006,Credited amounts,22/12/2016,427902,18,NET,Facultatieve Technologies Ltd,51210H
Gloucester City Council,23UE,Development Management,PT200,Basic Pay - Temporary Staff,2751,TEMPORARY STAFF,22/12/2016,427770,1852.5,NET,The Oyster Partnership Limited,14900T
Gloucester City Council,23UE,Development Management,PT200,Basic Pay - Temporary Staff,2751,TEMPORARY STAFF,22/12/2016,427772,1432.86,NET,The Oyster Partnership Limited,14900T
Gloucester City Council,23UE,Financial Services,RT200,Fees For Services Received,5350,FAW Course 07/08 October 2016,22/12/2016,426220,185,NET,Aspire Sports & Cultural Trust,08135V
Gloucester City Council,23UE,General Drainage Works,PY241,Contract Payments,0020,sudbrook trial holes,22/12/2016,427877,400,CAP,Rj Contracting (Environmental) Ltd,07429H
Gloucester City Council,23UE,Guildhall Bar And Caf�,LA210,Catering Provisions -Food,5110,coffee,22/12/2016,427876,147.63,NET,Ethical Addictions Ltd,11654N
Gloucester City Council,23UE,Guildhall Bar And Caf�,LA210,Catering Provisions -Food,5110,food,22/12/2016,427334,34.3,NET,Janes Pantry,24500W
Gloucester City Council,23UE,Guildhall Bar And Caf�,LA210,Catering Provisions -Food,5110,food,22/12/2016,427861,180.35,NET,Woodward Foodservice,10714F
Gloucester City Council,23UE,Guildhall Bar And Caf�,LA210,Catering Provisions -Food,5110,ice cream for resale,22/12/2016,427871,144,NET,Winstones Ice Cream Ltd,56347D
Gloucester City Council,23UE,Guildhall Bar And Caf�,LA210,Catering Provisions -Food,5110,milk,22/12/2016,427862,7.14,NET,Total Produce Gloucester,12645E
Gloucester City Council,23UE,Guildhall Bar And Caf�,LA210,Catering Provisions -Food,5110,milk,22/12/2016,427863,7.14,NET,Total Produce Gloucester,12645E
Gloucester City Council,23UE,Guildhall Bar And Caf�,LA210,Catering Provisions -Food,5110,milk,22/12/2016,427864,7.14,NET,Total Produce Gloucester,12645E
Gloucester City Council,23UE,Guildhall Bar And Caf�,LA210,Catering Provisions -Food,5110,milk,22/12/2016,427865,7.14,NET,Total Produce Gloucester,12645E
Gloucester City Council,23UE,Guildhall Bar And Caf�,LA210,Catering Provisions -Food,5110,milk,22/12/2016,427866,7.14,NET,Total Produce Gloucester,12645E
Gloucester City Council,23UE,Guildhall Bar And Caf�,LA210,Catering Provisions -Liquor,5111,drinks for resale,22/12/2016,427872,1095.63,NET,Cellar Supplies Cheltenham Ltd,01563L
Gloucester City Council,23UE,Guildhall Bar And Caf�,LA210,Catering Provisions -Liquor,5111,drinks for resale,22/12/2016,427874,880.3,NET,Cellar Supplies Cheltenham Ltd,01563L
Gloucester City Council,23UE,REDACTED,REDACTED,REDACTED,REDACTED,REDACTED,22/12/2016,REDACTED,100,NET,REDACTED,REDACTED
Gloucester City Council,23UE,Guildhall Events,LA200,Advertising And Publicity,5702,December 16 Leaflets,22/12/2016,427794,207.3,NET,The Local Answer,12841C
Gloucester City Council,23UE,Guildhall Events,LA200,Advertising And Publicity,5702,Display Ad,22/12/2016,427795,70,NET,Forest Of Dean & Wye Valley Review,14590K
Gloucester City Council,23UE,REDACTED,REDACTED,REDACTED,REDACTED,REDACTED,22/12/2016,REDACTED,100,NET,REDACTED,REDACTED
Gloucester City Council,23UE,REDACTED,REDACTED,REDACTED,REDACTED,REDACTED,22/12/2016,REDACTED,500,NET,REDACTED,REDACTED
Gloucester City Council,23UE,Hackney Carriages,HL100,Other Minor Supplies Services,5590,INTERNAL PLATE SET,22/12/2016,427782,1543.9,NET,Mogo Uk,56615B
Gloucester City Council,23UE,Head Of Regeneration & Eco Dev,GO102,Advertising And Publicity,5702,Great Glos High St campaign licence,22/12/2016,427880,2000,NET,Gfirst Lep Cic,17186T
Gloucester City Council,23UE,REDACTED,REDACTED,REDACTED,REDACTED,REDACTED,22/12/2016,REDACTED,1800,NET,REDACTED,REDACTED
Gloucester City Council,23UE,Homelessness Prevention,CH122,Fees For Services Received,5350,Contributions,22/12/2016,427790,10000,NET,Cotswold District Council,49331J
Gloucester City Council,23UE,Housing Works In Default,HD500,Clearance And Cleansing Fees,5384,Installation,22/12/2016,427776,4983,NET,Orbis Protect Limited*,56370J
Gloucester City Council,23UE,REDACTED,REDACTED,REDACTED,REDACTED,REDACTED,22/12/2016,REDACTED,2812.08,NET,REDACTED,REDACTED
Gloucester City Council,23UE,Legal Services,RS200,Fees For Services Received,5350,ONE LEGAL COSTS,22/12/2016,427868,4195.08,NET,Tewkesbury Borough Council,43800C
Gloucester City Council,23UE,REDACTED,REDACTED,REDACTED,REDACTED,REDACTED,22/12/2016,REDACTED,21,NET,REDACTED,REDACTED
Gloucester City Council,23UE,Nms Contract,HI102,Fees For Services Received,5350,KERBSIDE BOXES,22/12/2016,427731,11949.96,NET,Straight Plc,50537E
Gloucester City Council,23UE,Nms Contract,HI102,Fees For Services Received,5350,KERBSIDE BOXES,22/12/2016,427788,11949.96,NET,Straight Plc,50537E
Gloucester City Council,23UE,Nms Contract,HI102,Fees For Services Received,5350,recycling guides,22/12/2016,427552,24705.35,NET,Gloucestershire County Council,18650D
Gloucester City Council,23UE,REDACTED,REDACTED,REDACTED,REDACTED,REDACTED,22/12/2016,REDACTED,86.66,NET,REDACTED,REDACTED
Gloucester City Council,23UE,Planning Policy & Heritage,PT300,Basic Pay - Temporary Staff,2751,TEMPORARY STAFF,22/12/2016,427771,2038.42,NET,The Oyster Partnership Limited,14900T
Gloucester City Council,23UE,Rehousing,CH111,Fees For Services Received,5350,medical report,22/12/2016,427885,20.5,NET,Rosebank Health,03041E
Gloucester City Council,23UE,REDACTED,REDACTED,REDACTED,REDACTED,REDACTED,22/12/2016,REDACTED,20.5,NET,REDACTED,REDACTED
Gloucester City Council,23UE,REDACTED,REDACTED,REDACTED,REDACTED,REDACTED,22/12/2016,REDACTED,20.5,NET,REDACTED,REDACTED
Gloucester City Council,23UE,The Arbor,HC501,Catering Provisions -Food,5110,food,22/12/2016,427333,87.06,NET,Janes Pantry,24500W
Gloucester City Council,23UE,The Arbor,HC501,Catering Provisions -Food,5110,food,22/12/2016,427893,115.98,NET,Janes Pantry,24500W
Gloucester City Council,23UE,The Arbor,HC501,Catering Provisions -Food,5110,food,22/12/2016,427894,80.39,NET,Janes Pantry,24500W
Gloucester City Council,23UE,Tourism Marketing,LT100,Window Cleaning,3610,Window Cleaning,22/12/2016,427784,36,NET,Interserve Fs (Uk) Limited,00442K
Gloucester City Council,23UE,Barbican Car Park,RB543,General Repair/Maint Buildings,3000,Barbican Car Park 13/12/16,23/12/2016,427733,1454,NET,Ken Pink Plant Hire Ltd,56884V
Gloucester City Council,23UE,Blackfriars,LA609,Fees For Services Received,5350,temp bar staff w/e 11/12/16,23/12/2016,427888,165.65,NET,Re People,17253D
Gloucester City Council,23UE,Client Revs & Bens Contract,RT240,Fees For Services Received,5350,warrants,23/12/2016,427817,120,NET,Assevarate Ltd,11749A
Gloucester City Council,23UE,Client Revs & Bens Contract,RT240,Training Course Fees,5367,GLOMAS training Universal Credit,23/12/2016,426600,100,NET,Gloucester & District Citizens Advice Bureau,07709Y
Gloucester City Council,23UE,Council Streetcare Team,HI101,Fees For Services Received,5350,KINGSWAY POND CLEARANCE,23/12/2016,427780,3125,NET,Charlton Abbotts Forestry Ltd,14989X
Gloucester City Council,23UE,REDACTED,REDACTED,REDACTED,REDACTED,REDACTED,23/12/2016,REDACTED,400,NET,REDACTED,REDACTED
Gloucester City Council,23UE,Crematorium,HC200,Repair/Maint Of Fixed Plant,3006,Engineer & parts,23/12/2016,427838,540.48,NET,Facultatieve Technologies Ltd,51210H
Gloucester City Council,23UE,Financial Services,RT200,Fees For Services Received,5350,Closed Circuit TV System,23/12/2016,422771,114.73,NET,Allcoopers Ltd,52921E
Gloucester City Council,23UE,Flex Replacement,LY160,It Hardware,0042,additional installation day 7/11/16,23/12/2016,426526,750,CAP,Toptix (Uk) Ltd,16411V
Gloucester City Council,23UE,Flex Replacement,LY160,It Hardware,0042,project services time,23/12/2016,426527,6000,CAP,Toptix (Uk) Ltd,16411V
Gloucester City Council,23UE,Guildhall Bar And Caf�,LA210,Catering Provisions -Liquor,5111,beergas,23/12/2016,427203,10.76,NET,Boc Ltd,59172L
Gloucester City Council,23UE,Guildhall Bar And Caf�,LA210,Catering Provisions -Liquor,5111,drinks for resale,23/12/2016,427815,1517.18,NET,Cellar Supplies Cheltenham Ltd,01563L
Gloucester City Council,23UE,Guildhall Bar And Caf�,LA210,Fees For Services Received,5350,temp bar staff w/e 11/12/16,23/12/2016,427887,101.08,NET,Re People,17253D
Gloucester City Council,23UE,REDACTED,REDACTED,REDACTED,REDACTED,REDACTED,23/12/2016,REDACTED,242.71,NET,REDACTED,REDACTED
Gloucester City Council,23UE,REDACTED,REDACTED,REDACTED,REDACTED,REDACTED,23/12/2016,REDACTED,16.43,NET,REDACTED,REDACTED
Gloucester City Council,23UE,REDACTED,REDACTED,REDACTED,REDACTED,REDACTED,23/12/2016,REDACTED,530,NET,REDACTED,REDACTED
Gloucester City Council,23UE,REDACTED,REDACTED,REDACTED,REDACTED,REDACTED,23/12/2016,REDACTED,489.44,NET,REDACTED,REDACTED
Gloucester City Council,23UE,Investment Property,RB500,Consultants Fees,5349,RE 41 SOUTHGATE ST WORKS,23/12/2016,427798,750,NET,Ash & Co Cs Llp (Barge Arm Car Park),12522Y
Gloucester City Council,23UE,Nms Contract,HI102,Additional Non-Tender Items,6973,240l bins,23/12/2016,427763,3723.15,NET,Enterprise (Aol) Ltd,06695G
Gloucester City Council,23UE,Nms Contract,HI102,Contracted Services,6970,Pension Recharge Nov 16,23/12/2016,427278,9758.65,NET,Enterprise (Aol) Ltd,06695G
Gloucester City Council,23UE,Off Street Car Parks,PP110,General Repair/Maint Buildings,3000,Roadsweeper Nov & Dec 2016,23/12/2016,427828,3844,NET,Ken Pink Plant Hire Ltd,56884V
Gloucester City Council,23UE,Parks Contract Management,LP100,Maint Of Grounds - General,3030,Titan Rope Ladder,23/12/2016,427818,313.5,NET,Hags-Smp Ltd,00672P
Gloucester City Council,23UE,Pollution Control,HE300,Fees For Services Received,5350,Sandhurst Lane,23/12/2016,427792,175,NET,Rj Contracting (Environmental) Ltd,07429H
Gloucester City Council,23UE,Pollution Control,HE300,Fees For Services Received,5350,NO2 tubes & analysis,23/12/2016,427836,23.85,NET,Gradko International Ltd,11063B
Gloucester City Council,23UE,Statutory Testing,RS310,Fire Alarm Maintenance,3053,Fire Alarm System,23/12/2016,427773,110,NET,Allcoopers Ltd,52921E
Gloucester City Council,23UE,The Arbor,HC501,Catering Provisions -Food,5110,food,23/12/2016,427801,23.44,NET,Total Produce Gloucester,12645E
Gloucester City Council,23UE,The Arbor,HC501,Catering Provisions -Food,5110,food,23/12/2016,427802,18.34,NET,Total Produce Gloucester,12645E
Gloucester City Council,23UE,The Arbor,HC501,Catering Provisions -Food,5110,food,23/12/2016,427803,34.91,NET,Total Produce Gloucester,12645E
Gloucester City Council,23UE,The Arbor,HC501,Catering Provisions -Food,5110,food,23/12/2016,427804,16.97,NET,Total Produce Gloucester,12645E
Gloucester City Council,23UE,The Arbor,HC501,Catering Provisions -Food,5110,food,23/12/2016,427805,39.42,NET,Total Produce Gloucester,12645E
Gloucester City Council,23UE,The Arbor,HC501,Catering Provisions -Food,5110,food,23/12/2016,427806,28.52,NET,Total Produce Gloucester,12645E
Gloucester City Council,23UE,The Arbor,HC501,Catering Provisions -Food,5110,food,23/12/2016,427808,72.41,NET,Total Produce Gloucester,12645E
Gloucester City Council,23UE,The Arbor,HC501,Catering Provisions -Food,5110,FOOD,23/12/2016,427799,5.95,NET,Total Produce Gloucester,12645E
Gloucester City Council,23UE,Blackfriars,LA609,Hire Of Equipment,5020,Blackfriars Christmas Tree,,427978,114,NET,Coddington Christmas Trees,13746M
Gloucester City Council,23UE,Business Transformation & Tech,RT700,Internet Service Provider Fees,5429,acct 510738303 lift line DEC16-JAN17,,427570,16.99,NET,Virgin Media Payments Ltd,09376J
Gloucester City Council,23UE,Business Transformation & Tech,RT700,Internet Service Provider Fees,5429,Acct 511159201,,422629,80,NET,Virgin Media Payments Ltd,09376J
Gloucester City Council,23UE,Business Transformation & Tech,RT700,Internet Service Provider Fees,5429,Blueyonder OCT-NOV16,,424971,80,NET,Virgin Media Payments Ltd,09376J
Gloucester City Council,23UE,Business Transformation & Tech,RT700,Internet Service Provider Fees,5429,Blueyonder SEP-OCT16,,423867,80,NET,Virgin Media Payments Ltd,09376J
Gloucester City Council,23UE,Business Transformation & Tech,RT700,Internet Service Provider Fees,5429,Charges,,426132,80,NET,Virgin Media Payments Ltd,09376J
Gloucester City Council,23UE,Cctv Revenue Budget,FP501,Security Equipment Serv/Repair,3038,Clear Credit Note LGUG959K,,427099,1138.85,NET,Npower,55506T
Gloucester City Council,23UE,Cemeteries,HC300,Major R And M - Vehicles,4010,winter service for mini diggers,,427968,510,NET,Jay Bee Plant Sales Ltd,11156L
Gloucester City Council,23UE,Contact Centre,RB300,Postages,5400,Post 11/11 - 24/11 2016,,427077,1228.23,NET,Royal Mail S.Wales & South West,35830S
Gloucester City Council,23UE,Contact Centre,RB300,Postages,5400,Post 25/11 - 08/12 2016,,427833,1570.01,NET,Royal Mail S.Wales & South West,35830S
Gloucester City Council,23UE,Contact Centre,RB300,Postages,5400,Response Plus Services,,427830,3589.88,NET,Royal Mail S.Wales & South West,35830S
Gloucester City Council,23UE,Countryside Unit,LP201,Livestock Foodstuff,5841,Min/Salt Lick & Copper,,427811,13.99,NET,Countrywide Farmers,55687J
Gloucester City Council,23UE,Crematorium,HC200,Cleaning Materials,3600,Jan-March 2017 towel service,,427971,32.3,NET,Initial Washroom Solutions,24219P
Gloucester City Council,23UE,Crematorium,HC200,Fees For Services Received,5350,Crem Fee December 2016,,428003,1285.52,NET,Dr C M Stretton,00306P
Gloucester City Council,23UE,Crematorium,HC200,Fees For Services Received,5350,Crem Fees December 2016,,428004,972.4,NET,Dr D Martin,00890P
Gloucester City Council,23UE,Crematorium,HC200,Fees For Services Received,5350,Crem Fees December 2016,,428005,473.44,NET,Dr R W Bell,01571P
Gloucester City Council,23UE,Crematorium,HC200,Licences,5703,2017 corporate membership,,427984,205,NET,National Association Of Memorial Masons,59564N
Gloucester City Council,23UE,Crematorium,HC200,Memorial Plaques,5053,MEMORIAL,,427775,107.7,NET,Treasured Memories Limited,11058H
Gloucester City Council,23UE,Financial Services,RT200,Fees For Services Received,5350,Credited,,427475,115.82,NET,Acs Business Supplies Ltd,15791M
Gloucester City Council,23UE,Financial Services,RT200,Fees For Services Received,5350,Crem watercooler,,420966,582,NET,Angel Springs Ltd,05491X
Gloucester City Council,23UE,Financial Services,RT200,Fees For Services Received,5350,Tredworth cemetery water cooler,,420967,153,NET,Angel Springs Ltd,05491X
Gloucester City Council,23UE,Guildhall Events,LA200,Advertising And Publicity,5702,adverts December 2016,,427973,180,NET,Local World Ltd,08556P
Gloucester City Council,23UE,Guildhall Events,LA200,Fees For Services Received,5350,Whats on guide DEC16,,426525,939,NET,Color Co,57707K
Gloucester City Council,23UE,Homelessness,CH120,Fees For Services Received,5350,medical report,,427970,24.36,NET,Rosebank Health,03041E
Gloucester City Council,23UE,REDACTED,REDACTED,REDACTED,REDACTED,REDACTED,,REDACTED,571.28,NET,REDACTED,REDACTED
Gloucester City Council,23UE,Homelessness,CH120,Rents,3200,Q3 Management Fee,,427727,46250,NET,Gloucester City Homes,05244T
Gloucester City Council,23UE,Homelessness Prevention,CH122,Basic Pay - Temporary Staff,2751,temporary staff w/e 11/12/2016,,427827,478.41,NET,One To One Recruitment,04752H
Gloucester City Council,23UE,Homelessness Prevention,CH122,Basic Pay - Temporary Staff,2751,temporary staff 16/12/16,,427886,468.71,NET,One To One Recruitment,04752H
Gloucester City Council,23UE,Homelessness Prevention,CH122,Fees For Services Received,5350,ROUGH SLEEPER OUTREACH PROJECT FEES,,427993,5000,NET,Cotswold District Council,49331J
Gloucester City Council,23UE,REDACTED,REDACTED,REDACTED,REDACTED,REDACTED,,REDACTED,800,NET,REDACTED,REDACTED
Gloucester City Council,23UE,Housing Works In Default,HD500,Clearance And Cleansing Fees,5384,default works re Bishopstone Road,,427974,1312.35,NET,Mears Home Improvement Ltd,00096G
Gloucester City Council,23UE,Managing Director,RE100,Vocational Training,2970,safeguarding children course,,427892,60,NET,Gloucestershire County Council,18650D
Gloucester City Council,23UE,Off Street Car Parks,PP110,Contracted Services,6970,Cashless Parking Fees,,426572,513.75,NET,Chipside Ltd,06535T
Gloucester City Council,23UE,Off Street Car Parks,PP110,Contracted Services,6970,Cashless Parking Fees,,427373,850.42,NET,Chipside Ltd,06535T
Gloucester City Council,23UE,Off Street Car Parks,PP110,Contracted Services,6970,Third Party Charges,,426573,1038.74,NET,Chipside Ltd,06535T
Gloucester City Council,23UE,Off Street Car Parks,PP110,Contracted Services,6970,Third Party Charges,,427372,1624.05,NET,Chipside Ltd,06535T
Gloucester City Council,23UE,Pest Control,HD400,Fees For Services Received,5350,pest control visits,,428000,8126.75,NET,Falconry Services Ltd,10692P
Gloucester City Council,23UE,Registration Of Electors,RS400,Postages,5400,ier mailings acct 0870585031,,427985,1355.31,NET,Royal Mail S.Wales & South West,35830S
Gloucester City Council,23UE,Taxi Marshalling Scheme,HL101,Taxi Marshals,5387,security service 16 & 17 DEC16,,427976,221,NET,Sterling Security Solutions Ltd,17306H
Gloucester City Council,23UE,Taxi Marshalling Scheme,HL101,Taxi Marshals,5387,security services 9 & 10 DEC16,,427983,169,NET,Sterling Security Solutions Ltd,17306H
Gloucester City Council,23UE,The Arbor,HC501,Catering Provisions -Food,5110,food,,427585,130,NET,Bidvest Foodservice (3663),55585U
Gloucester City Council,23UE,Tic Stamp Sales,LT102,Postages,5400,INTERNATIONAL POSTCARD STAMP,,427787,95,NET,Universal Mail United Kingdom Ltd,14283Y
Gloucester City Council,23UE,Tic Trading,LT110,Publications For Sale,5064,GOODS FOR RESALE,,427743,83.25,NET,Black Dwarf Lightmoor Publications Ltd,59484M
Gloucester City Council,23UE,Tourism Marketing,LT100,Other Minor Supplies Services,5590,Brown Craft Bags,,427730,179,NET,Fleet Retail Packaging Ltd,04259N
,,,,,,,,Sum:,17631196.16,,,
